{"text_format":"1","workbook":"xlsx","n_sheets":7,"sheets":["Accueil","Outils_de_calcul_ETP","Paramétres","Aide calcul MP","Résultats numériques","Résultats graphiques","Feuil-cachée"],"not_rendered":{"charts":2,"images":21,"macros":1,"external_links":0,"defined_names":1,"comments":1,"pivot_tables":2},"unopened":[],"bounds":{"document_bytes":16777216,"sheet_cells":100000,"rows_first":2000,"rows_last":500,"rows_between":2000,"halvings":0,"cell_chars":16384,"cell_head_chars":4096},"cells_cut":0,"cells_raw":0,"read":"whole","date_system":"1900"}

{"sheet":"Accueil","index":0,"n_rows":21,"n_cols":17,"rows_kept":21,"cut":false,"hidden":false,"merged":[[20,16,23,17],[2,2,29,13]]}
[]
[null,null,"Mode d'emploi de l'outil de calcul ETP de maintenance préventive:"]
[null,null,"En appuyant sur le bouton \"Démarrer\"      , vous arriverez sur la page \"Outils_de calcul_ETP\" ou vous trouverez un tableau composé de deux parties:\n* La première partie dispose d'une liste de famille et d’équipements prédéfinis. Ils sont présents dans la majorité des établissements et ne sont pas modifiables dans l’outil.\n* La seconde partie est vide, permettant à l’utilisateur d'ajouter jusqu’à 32 dispositifs supplémentaires de son choix et également de l’associer à une des familles prédéfinies dans le logiciel.\n\nPour chaque DM renseigner sur ce tableau, l’utilisateur devra renseigner plusieurs colonnes:\n • Si le DM est à maintenir.                                                                      • La périodicité de maintenance préventive.                  • le lieu de prise en charge de l’équipement.\n • Le type de maintenance                                                                       • Le nombre de dispositifs.                                                 • le temps de maintenance préventive. (Possibilité d'utiliser l’aide de calcul MP)\n • Variable de temps supplémentaire (Possibilité de rajouter du temps selon les spécificités géographique, technique,... du DM)\n\n            Page « Aide calcul temps de MP », permet d’estimer le temps de maintenance préventive selon plusieurs critères pouvant être reporté dans la page “Outils de calcul du temps ETP”. \n•Contrôle Qualité.                                                                                      •Procédure d’hygiène.                                                           • Commande des kits de maintenance préventive.\n•Remplacement du kit de maintenance préventive.                   •Gestion administrative.                                                      •Décartonnage et valorisation des déchets.             \n\n           Page « Résultats numériques », représente:\n•le temps ETP par dispositifs                                                                                                                        •Le temps ETP pour l'ensemble du parc et des dispositifs maintenus.\n•Le nombre de techniciens nécessaire pour pouvoir réaliser la maintenance préventive de l'ensemble du parc de dispositifs médicaux.\n\n           Page “Résultats graphiques”, donne:\n• La représentation du nombre d’heures de maintenance par dispositifs médicaux.                       • La répartition du temps de maintenance préventive en fonction des familles de dispositifs médicaux.\n\n           Page « Paramètres », les utilisateurs pourront renseigner ou modifier:\nLe temps en pourcentage du type de maintenance.                         le temps estimé de prise en charge en fonction du lieu d’intervention.           Le temps annuel d’un technicien biomédical.\n• Externalisation: 5% (de base).                                                                 • Service de soins: 0,5 heure (de base)                                                                             • Temps: 1580 heures (de base)\n• Partagée: 50% (de base).                                                                           • Atelier biomédical: 0,25 heure (de base)\n                                                                                                                                 • Site extérieur: 1 heures (de base)\n            Icône \"imprimante\": permet sur les pages ou l'icone est présente d'imprimer les données affichées à l'écran au format adéquat."]
[]
[]
[]
[]
[]
[]
[]
[]
[]
[]
[]
[]
[]
[]
[]
[]
[]
[null,null,null,null,null,null,null,null,null,null,null,null,null,null,null,null,"Utiliser exclusivement les icones \npour naviguer dans le logiciel"]

{"sheet":"Outils_de_calcul_ETP","index":1,"n_rows":36,"n_cols":10,"rows_kept":36,"cut":false,"hidden":false,"merged":[[3,1,3,9],[31,1,35,1],[28,1,30,1],[12,1,17,1],[5,1,11,1],[18,1,20,1],[26,1,27,1],[21,1,25,1]]}
[]
[]
[]
[null,"Dispositifs médicaux de l'outil"]
[null,"Famille de dispositifs\n médicaux","Dispositifs médicaux de l'outil","Dispositifs médicaux à maintenir","Type de maintenance","Lieu d'intervention","Temps de\nmaintenance\npréventive\n(en heure)","Périodicité\n(MP/AN)","Nbre \nd'équipement","Variable de temps supplémentaire"]
[null,"Ventilation","Respirateur d'anesthésie"]
[null,null,"Respirateur de transport"]
[null,null,"Respirateur de SSPI"]
[null,null,"Respirateur de réanimation"]
[null,null,"Respirateur pédiatrique/néonat"]
[null,null,"Cuves halogénées"]
[null,null,"Module gaz (Capno)"]
[null,"Monitorage","Tensiomètre / SPO2"]
[null,null,"Monitorage"]
[null,null,"Centrale de monitorage"]
[null,null,"Télémétrie/holter"]
[null,null,"Cardiotochographe"]
[null,null,"Défibrillateur"]
[null,"Dialyse","Traitement d'eau de dialyse"]
[null,null,"Générateurs de dialyse"]
[null,null,"Moniteurs d'hémofiltration"]
[null,"Thermie","Tables radiantes neonatales"]
[null,null,"Incubateurs neonatales"]
[null,null,"Phototerapie"]
[null,null,"Réchauffeurs patients"]
[null,null,"Réchauffeurs de soluté"]
[null,"Perfusion","Pousse-seringues"]
[null,null,"Pompes à perfusion"]
[null,"Chirurgie","Bistouris électriques"]
[null,null,"Console de circulation extracorporelle"]
[null,null,"Insufflateurs"]
[null,"Imagerie","Injecteurs produit de contraste"]
[null,null,"Salle radio"]
[null,null,"Mobile radio"]
[null,null,"IRM"]
[null,null,"Scanner"]

{"sheet":"Paramétres","index":2,"n_rows":18,"n_cols":18,"rows_kept":18,"cut":false,"hidden":false,"merged":[[4,2,5,3],[5,4,5,5],[8,2,10,3]]}
[]
[null,null,"Personnalisation de l'outil:"]
[null,null,"Temps annuel d'un technicien biomédical:",null,null,null,1580,"Heures"]
[]
[null,null,"Type de maintenance",null,"Externalisée",null,0.05,"%"]
[null,null,null,null,"Partagée",null,0.5,"%"]
[]
[]
[null,null,"Lieu d'intervention",null,"Service de soins",null,0.5,"Heures(s)",null,null,null,null,null,"                  Notre équipe"]
[null,null,null,null,"Atelier Biomédical",null,0.25,"Heure(S)"]
[null,null,null,null,"Site externe",null,1,"Heure(S)"]
[]
[]
[null,null,"Parcours:"]
[null,null,"Master 2 Ingénierie de la santé - Technologie biomédical et territoires de santé"]
[null,null,"Formation continue - Responsables d’ateliers biomédicaux"]
[null,null,"https://doi.org/10.34756/ids211"]
[null,null," https://travaux.master.utc.fr/formations-master/ingenierie-de-la-sante/ids211",null,null,null,null,null,null,null,null,null,null,"François Lecoutour",null,"David Soubirous",null,"Emmanuel Laporte"]

{"sheet":"Aide calcul MP","index":3,"n_rows":26,"n_cols":9,"rows_kept":26,"cut":false,"hidden":false,"merged":[[5,1,5,6],[5,8,6,8],[10,1,10,4],[10,5,10,6],[10,8,15,8],[14,1,14,3],[14,4,14,5]]}
[]
[]
[]
[]
[]
[null,"Temps de maintenance préventive détaillé (en heure)",null,null,null,null,null,null,"Forfait temps de\nmaintenance préventice"]
[null,"Conrôle Qualité","Remplacement kit MP","Nettoyage et desinfection du dispositif","Temps de commande des kits MP","Décartonage et valorisation des déchets","Gestion administrative (GMAO)"]
[null,null,null,null,null,null,null,null,{"$f":"VLOOKUP(I26,'Feuil-cachée'!C$48:D$156,2,0)","v":0}]
[]
[]
[null,"PREPARATION A LA MAINTENANCE",null,null,null,"MAINTENANCE",null,null,"Tableau des temps médians repris du groupe de travail de la formation ABIH 2023\nSuite à une enquête auprès de 30 services biomédicaux"]
[null,"Commande de pièces détachées du DM","Création d'un protocole de contrôle","Formation du personnel sur le DM","Soutien logiciel","Consultation des manuels cliniques et techniques ","Nettoyage de l'appareil"]
[null,1.5,3,3.5,0.2,0.1,0.08]
[]
[null,"SOUTIEN LOGISTIQUE INTÉGRÉ",null,null,"REGISTRE SECU QUALITE MAINTENANCE"]
[null,"Identification des DM à contrôler ","Communication avec le service","Recuperation du DM"," Récupération de la fiche d'intervention  ","Enregistrer le compte-rendu contrôle "]
[null,0.05,0.15,0.25,7.0000000000000007E-2,7.0000000000000007E-2,null,null,"https://abih.utc.fr/projets/abih-23-03/"]
[]
[]
[]
[]
[]
[]
[]
[]
[null,{"$f":"VLOOKUP(B8,'Feuil-cachée'!J$19:K$127,2,0)","v":0},{"$f":"VLOOKUP(C8,'Feuil-cachée'!J$19:K$127,2,0)","v":0},{"$f":"VLOOKUP(D8,'Feuil-cachée'!J$19:K$127,2,0)","v":0},{"$f":"VLOOKUP(E8,'Feuil-cachée'!J$19:K$127,2,0)","v":0},{"$f":"VLOOKUP(F8,'Feuil-cachée'!J$19:K$127,2,0)","v":0},{"$f":"VLOOKUP(G8,'Feuil-cachée'!J$19:K$127,2,0)","v":0},null,{"$f":"ROUND(SUM(B26+C26+D26+G26+E26+F26),2)","v":0}]

{"sheet":"Résultats numériques","index":4,"n_rows":71,"n_cols":28,"rows_kept":71,"cut":false,"hidden":false,"merged":[[2,1,7,1],[2,2,7,2],[2,3,7,3],[2,5,7,5],[2,6,7,6],[2,7,7,7],[2,8,7,8],[2,9,7,9],[2,10,7,10],[7,12,7,14],[2,12,3,13],[2,14,3,14],[4,12,5,13],[4,14,5,14],[6,12,6,14]]}
[]
[]
[null,"Famille de\n dispositifs médicaux","Type de dispositifs médicaux","Nombres","Type de MP\n(Internalisée/externalisée/Partagée)\nen %","Périodicité\nMP/AN","Tps passé pour 1 MP + Gestion\nen heure","Temps de prise en charge des DM\nen heure","Variable de temps supplémentaire","Tps Total en Heures","Soit en ETP",null,"Temps total pour la MP global du parc de DM",null,{"$f":"SUM(J9:J71)","v":0}]
[]
[null,null,null,null,null,null,null,null,null,null,null,null,"Nombre d'heures travaillés/tech",null,{"$f":"Paramétres!G3","v":1580}]
[]
[null,null,null,null,null,null,null,null,null,null,null,null,"Nombre de techicien nécéssaire pour réaliser la MP"]
[null,null,null,null,null,null,null,null,null,null,null,null,{"$f":"(O3/O5)","v":0}]
[null,"Ventilation",{"$f":"IF(Outils_de_calcul_ETP!D6=\"OUI\",Outils_de_calcul_ETP!C6,0)","v":0},{"$f":"IF(C9>0,Outils_de_calcul_ETP!I6,)","v":0},{"$f":"_xlfn.IFS(Outils_de_calcul_ETP!E6=\"Externalisée\",Paramétres!G$5,Outils_de_calcul_ETP!E6=\"Internalisée\",1,Outils_de_calcul_ETP!E6=\"Partagée\",Paramétres!G$6,Outils_de_calcul_ETP!E6=\"NON\",0,Outils_de_calcul_ETP!E6=\"\",0)","v":0},{"$f":"IF(C9<>0, IFERROR(INDEX(Outils_de_calcul_ETP!H:H, MATCH(C9, Outils_de_calcul_ETP!C:C, 0)), 0), 0)","v":0},{"$f":"IFERROR(IF(C9<>0, INDEX(Outils_de_calcul_ETP!G:G, MATCH(C9, Outils_de_calcul_ETP!C:C, 0)), IF(C9=0, 0)), 0)","v":0},{"$f":"_xlfn.IFS(Outils_de_calcul_ETP!F6=\"Atelier biomédical\",Paramétres!G$10,Outils_de_calcul_ETP!F6=\"Service de soins\",Paramétres!G$9,Outils_de_calcul_ETP!F6=\"Site extérieur\",Paramétres!G$11,Outils_de_calcul_ETP!F6=\"NON\",0,Outils_de_calcul_ETP!F6=\"\",0)*D9","v":0},{"$f":"Outils_de_calcul_ETP!J6","v":0},{"$f":"(D9*F9*G9*E9)+I9+H9","v":0},{"$f":"(J9/O$5)","v":0}]
[null,"Ventilation",{"$f":"IF(Outils_de_calcul_ETP!D7=\"OUI\",Outils_de_calcul_ETP!C7,0)","v":0},{"$f":"IF(C10>0,Outils_de_calcul_ETP!I7,)","v":0},{"$f":"_xlfn.IFS(Outils_de_calcul_ETP!E7=\"Externalisée\",Paramétres!G$5,Outils_de_calcul_ETP!E7=\"Internalisée\",1,Outils_de_calcul_ETP!E7=\"Partagée\",Paramétres!G$6,Outils_de_calcul_ETP!E7=\"NON\",0,Outils_de_calcul_ETP!E7=\"\",0)","v":0},{"$f":"IF(C10<>0, IFERROR(INDEX(Outils_de_calcul_ETP!H:H, MATCH(C10, Outils_de_calcul_ETP!C:C, 0)), 0), 0)","v":0},{"$f":"IFERROR(IF(C10<>0, INDEX(Outils_de_calcul_ETP!G:G, MATCH(C10, Outils_de_calcul_ETP!C:C, 0)), IF(C10=0, 0)), 0)","v":0},{"$f":"_xlfn.IFS(Outils_de_calcul_ETP!F7=\"Atelier biomédical\",Paramétres!G$10,Outils_de_calcul_ETP!F7=\"Service de soins\",Paramétres!G$9,Outils_de_calcul_ETP!F7=\"Site extérieur\",Paramétres!G$11,Outils_de_calcul_ETP!F7=\"NON\",0,Outils_de_calcul_ETP!F7=\"\",0)*D10","v":0},{"$f":"Outils_de_calcul_ETP!J7","v":0},{"$f":"(D10*F10*G10*E10)+I10+H10","v":0},0,null,null,null,null,null,null,null,null,null,null,null,null,null,null,null,null,true]
[null,"Ventilation",{"$f":"IF(Outils_de_calcul_ETP!D8=\"OUI\",Outils_de_calcul_ETP!C8,0)","v":0},{"$f":"IF(C11>0,Outils_de_calcul_ETP!I8,)","v":0},{"$f":"_xlfn.IFS(Outils_de_calcul_ETP!E8=\"Externalisée\",Paramétres!G$5,Outils_de_calcul_ETP!E8=\"Internalisée\",1,Outils_de_calcul_ETP!E8=\"Partagée\",Paramétres!G$6,Outils_de_calcul_ETP!E8=\"NON\",0,Outils_de_calcul_ETP!E8=\"\",0)","v":0},{"$f":"IF(C11<>0, IFERROR(INDEX(Outils_de_calcul_ETP!H:H, MATCH(C11, Outils_de_calcul_ETP!C:C, 0)), 0), 0)","v":0},{"$f":"IFERROR(IF(C11<>0, INDEX(Outils_de_calcul_ETP!G:G, MATCH(C11, Outils_de_calcul_ETP!C:C, 0)), IF(C11=0, 0)), 0)","v":0},{"$f":"_xlfn.IFS(Outils_de_calcul_ETP!F8=\"Atelier biomédical\",Paramétres!G$10,Outils_de_calcul_ETP!F8=\"Service de soins\",Paramétres!G$9,Outils_de_calcul_ETP!F8=\"Site extérieur\",Paramétres!G$11,Outils_de_calcul_ETP!F8=\"NON\",0,Outils_de_calcul_ETP!F8=\"\",0)*D11","v":0},{"$f":"Outils_de_calcul_ETP!J8","v":0},0,0]
[null,"Ventilation",{"$f":"IF(Outils_de_calcul_ETP!D9=\"OUI\",Outils_de_calcul_ETP!C9,0)","v":0},{"$f":"IF(C12>0,Outils_de_calcul_ETP!I9,)","v":0},{"$f":"_xlfn.IFS(Outils_de_calcul_ETP!E9=\"Externalisée\",Paramétres!G$5,Outils_de_calcul_ETP!E9=\"Internalisée\",1,Outils_de_calcul_ETP!E9=\"Partagée\",Paramétres!G$6,Outils_de_calcul_ETP!E9=\"NON\",0,Outils_de_calcul_ETP!E9=\"\",0)","v":0},{"$f":"IF(C12<>0, IFERROR(INDEX(Outils_de_calcul_ETP!H:H, MATCH(C12, Outils_de_calcul_ETP!C:C, 0)), 0), 0)","v":0},{"$f":"IFERROR(IF(C12<>0, INDEX(Outils_de_calcul_ETP!G:G, MATCH(C12, Outils_de_calcul_ETP!C:C, 0)), IF(C12=0, 0)), 0)","v":0},{"$f":"_xlfn.IFS(Outils_de_calcul_ETP!F9=\"Atelier biomédical\",Paramétres!G$10,Outils_de_calcul_ETP!F9=\"Service de soins\",Paramétres!G$9,Outils_de_calcul_ETP!F9=\"Site extérieur\",Paramétres!G$11,Outils_de_calcul_ETP!F9=\"NON\",0,Outils_de_calcul_ETP!F9=\"\",0)*D12","v":0},{"$f":"Outils_de_calcul_ETP!J9","v":0},0,0]
[null,"Ventilation",{"$f":"IF(Outils_de_calcul_ETP!D10=\"OUI\",Outils_de_calcul_ETP!C10,0)","v":0},{"$f":"IF(C13>0,Outils_de_calcul_ETP!I10,)","v":0},{"$f":"_xlfn.IFS(Outils_de_calcul_ETP!E10=\"Externalisée\",Paramétres!G$5,Outils_de_calcul_ETP!E10=\"Internalisée\",1,Outils_de_calcul_ETP!E10=\"Partagée\",Paramétres!G$6,Outils_de_calcul_ETP!E10=\"NON\",0,Outils_de_calcul_ETP!E10=\"\",0)","v":0},{"$f":"IF(C13<>0, IFERROR(INDEX(Outils_de_calcul_ETP!H:H, MATCH(C13, Outils_de_calcul_ETP!C:C, 0)), 0), 0)","v":0},{"$f":"IFERROR(IF(C13<>0, INDEX(Outils_de_calcul_ETP!G:G, MATCH(C13, Outils_de_calcul_ETP!C:C, 0)), IF(C13=0, 0)), 0)","v":0},{"$f":"_xlfn.IFS(Outils_de_calcul_ETP!F10=\"Atelier biomédical\",Paramétres!G$10,Outils_de_calcul_ETP!F10=\"Service de soins\",Paramétres!G$9,Outils_de_calcul_ETP!F10=\"Site extérieur\",Paramétres!G$11,Outils_de_calcul_ETP!F10=\"NON\",0,Outils_de_calcul_ETP!F10=\"\",0)*D13","v":0},{"$f":"Outils_de_calcul_ETP!J10","v":0},0,0]
[null,"Ventilation",{"$f":"IF(Outils_de_calcul_ETP!D11=\"OUI\",Outils_de_calcul_ETP!C11,0)","v":0},{"$f":"IF(C14>0,Outils_de_calcul_ETP!I11,)","v":0},{"$f":"_xlfn.IFS(Outils_de_calcul_ETP!E11=\"Externalisée\",Paramétres!G$5,Outils_de_calcul_ETP!E11=\"Internalisée\",1,Outils_de_calcul_ETP!E11=\"Partagée\",Paramétres!G$6,Outils_de_calcul_ETP!E11=\"NON\",0,Outils_de_calcul_ETP!E11=\"\",0)","v":0},{"$f":"IF(C14<>0, IFERROR(INDEX(Outils_de_calcul_ETP!H:H, MATCH(C14, Outils_de_calcul_ETP!C:C, 0)), 0), 0)","v":0},{"$f":"IFERROR(IF(C14<>0, INDEX(Outils_de_calcul_ETP!G:G, MATCH(C14, Outils_de_calcul_ETP!C:C, 0)), IF(C14=0, 0)), 0)","v":0},{"$f":"_xlfn.IFS(Outils_de_calcul_ETP!F11=\"Atelier biomédical\",Paramétres!G$10,Outils_de_calcul_ETP!F11=\"Service de soins\",Paramétres!G$9,Outils_de_calcul_ETP!F11=\"Site extérieur\",Paramétres!G$11,Outils_de_calcul_ETP!F11=\"NON\",0,Outils_de_calcul_ETP!F11=\"\",0)*D14","v":0},{"$f":"Outils_de_calcul_ETP!J11","v":0},0,0]
[null,"Ventilation",{"$f":"IF(Outils_de_calcul_ETP!D12=\"OUI\",Outils_de_calcul_ETP!C12,0)","v":0},{"$f":"IF(C15>0,Outils_de_calcul_ETP!I12,)","v":0},{"$f":"_xlfn.IFS(Outils_de_calcul_ETP!E12=\"Externalisée\",Paramétres!G$5,Outils_de_calcul_ETP!E12=\"Internalisée\",1,Outils_de_calcul_ETP!E12=\"Partagée\",Paramétres!G$6,Outils_de_calcul_ETP!E12=\"NON\",0,Outils_de_calcul_ETP!E12=\"\",0)","v":0},{"$f":"IF(C15<>0, IFERROR(INDEX(Outils_de_calcul_ETP!H:H, MATCH(C15, Outils_de_calcul_ETP!C:C, 0)), 0), 0)","v":0},{"$f":"IFERROR(IF(C15<>0, INDEX(Outils_de_calcul_ETP!G:G, MATCH(C15, Outils_de_calcul_ETP!C:C, 0)), IF(C15=0, 0)), 0)","v":0},{"$f":"_xlfn.IFS(Outils_de_calcul_ETP!F12=\"Atelier biomédical\",Paramétres!G$10,Outils_de_calcul_ETP!F12=\"Service de soins\",Paramétres!G$9,Outils_de_calcul_ETP!F12=\"Site extérieur\",Paramétres!G$11,Outils_de_calcul_ETP!F12=\"NON\",0,Outils_de_calcul_ETP!F12=\"\",0)*D15","v":0},{"$f":"Outils_de_calcul_ETP!J12","v":0},0,0]
[null,"Monitorage",{"$f":"IF(Outils_de_calcul_ETP!D13=\"OUI\",Outils_de_calcul_ETP!C13,0)","v":0},{"$f":"IF(C16>0,Outils_de_calcul_ETP!I13,)","v":0},{"$f":"_xlfn.IFS(Outils_de_calcul_ETP!E13=\"Externalisée\",Paramétres!G$5,Outils_de_calcul_ETP!E13=\"Internalisée\",1,Outils_de_calcul_ETP!E13=\"Partagée\",Paramétres!G$6,Outils_de_calcul_ETP!E13=\"NON\",0,Outils_de_calcul_ETP!E13=\"\",0)","v":0},{"$f":"IF(C16<>0, IFERROR(INDEX(Outils_de_calcul_ETP!H:H, MATCH(C16, Outils_de_calcul_ETP!C:C, 0)), 0), 0)","v":0},{"$f":"IFERROR(IF(C16<>0, INDEX(Outils_de_calcul_ETP!G:G, MATCH(C16, Outils_de_calcul_ETP!C:C, 0)), IF(C16=0, 0)), 0)","v":0},{"$f":"_xlfn.IFS(Outils_de_calcul_ETP!F13=\"Atelier biomédical\",Paramétres!G$10,Outils_de_calcul_ETP!F13=\"Service de soins\",Paramétres!G$9,Outils_de_calcul_ETP!F13=\"Site extérieur\",Paramétres!G$11,Outils_de_calcul_ETP!F13=\"NON\",0,Outils_de_calcul_ETP!F13=\"\",0)*D16","v":0},{"$f":"Outils_de_calcul_ETP!J13","v":0},0,0]
[null,"Monitorage",{"$f":"IF(Outils_de_calcul_ETP!D14=\"OUI\",Outils_de_calcul_ETP!C14,0)","v":0},{"$f":"IF(C17>0,Outils_de_calcul_ETP!I14,)","v":0},{"$f":"_xlfn.IFS(Outils_de_calcul_ETP!E14=\"Externalisée\",Paramétres!G$5,Outils_de_calcul_ETP!E14=\"Internalisée\",1,Outils_de_calcul_ETP!E14=\"Partagée\",Paramétres!G$6,Outils_de_calcul_ETP!E14=\"NON\",0,Outils_de_calcul_ETP!E14=\"\",0)","v":0},{"$f":"IF(C17<>0, IFERROR(INDEX(Outils_de_calcul_ETP!H:H, MATCH(C17, Outils_de_calcul_ETP!C:C, 0)), 0), 0)","v":0},{"$f":"IFERROR(IF(C17<>0, INDEX(Outils_de_calcul_ETP!G:G, MATCH(C17, Outils_de_calcul_ETP!C:C, 0)), IF(C17=0, 0)), 0)","v":0},{"$f":"_xlfn.IFS(Outils_de_calcul_ETP!F14=\"Atelier biomédical\",Paramétres!G$10,Outils_de_calcul_ETP!F14=\"Service de soins\",Paramétres!G$9,Outils_de_calcul_ETP!F14=\"Site extérieur\",Paramétres!G$11,Outils_de_calcul_ETP!F14=\"NON\",0,Outils_de_calcul_ETP!F14=\"\",0)*D17","v":0},{"$f":"Outils_de_calcul_ETP!J14","v":0},0,0]
[null,"Monitorage",{"$f":"IF(Outils_de_calcul_ETP!D15=\"OUI\",Outils_de_calcul_ETP!C15,0)","v":0},{"$f":"IF(C18>0,Outils_de_calcul_ETP!I15,)","v":0},{"$f":"_xlfn.IFS(Outils_de_calcul_ETP!E15=\"Externalisée\",Paramétres!G$5,Outils_de_calcul_ETP!E15=\"Internalisée\",1,Outils_de_calcul_ETP!E15=\"Partagée\",Paramétres!G$6,Outils_de_calcul_ETP!E15=\"NON\",0,Outils_de_calcul_ETP!E15=\"\",0)","v":0},{"$f":"IF(C18<>0, IFERROR(INDEX(Outils_de_calcul_ETP!H:H, MATCH(C18, Outils_de_calcul_ETP!C:C, 0)), 0), 0)","v":0},{"$f":"IFERROR(IF(C18<>0, INDEX(Outils_de_calcul_ETP!G:G, MATCH(C18, Outils_de_calcul_ETP!C:C, 0)), IF(C18=0, 0)), 0)","v":0},{"$f":"_xlfn.IFS(Outils_de_calcul_ETP!F15=\"Atelier biomédical\",Paramétres!G$10,Outils_de_calcul_ETP!F15=\"Service de soins\",Paramétres!G$9,Outils_de_calcul_ETP!F15=\"Site extérieur\",Paramétres!G$11,Outils_de_calcul_ETP!F15=\"NON\",0,Outils_de_calcul_ETP!F15=\"\",0)*D18","v":0},{"$f":"Outils_de_calcul_ETP!J15","v":0},0,0]
[null,"Monitorage",{"$f":"IF(Outils_de_calcul_ETP!D16=\"OUI\",Outils_de_calcul_ETP!C16,0)","v":0},{"$f":"IF(C19>0,Outils_de_calcul_ETP!I16,)","v":0},{"$f":"_xlfn.IFS(Outils_de_calcul_ETP!E16=\"Externalisée\",Paramétres!G$5,Outils_de_calcul_ETP!E16=\"Internalisée\",1,Outils_de_calcul_ETP!E16=\"Partagée\",Paramétres!G$6,Outils_de_calcul_ETP!E16=\"NON\",0,Outils_de_calcul_ETP!E16=\"\",0)","v":0},{"$f":"IF(C19<>0, IFERROR(INDEX(Outils_de_calcul_ETP!H:H, MATCH(C19, Outils_de_calcul_ETP!C:C, 0)), 0), 0)","v":0},{"$f":"IFERROR(IF(C19<>0, INDEX(Outils_de_calcul_ETP!G:G, MATCH(C19, Outils_de_calcul_ETP!C:C, 0)), IF(C19=0, 0)), 0)","v":0},{"$f":"_xlfn.IFS(Outils_de_calcul_ETP!F16=\"Atelier biomédical\",Paramétres!G$10,Outils_de_calcul_ETP!F16=\"Service de soins\",Paramétres!G$9,Outils_de_calcul_ETP!F16=\"Site extérieur\",Paramétres!G$11,Outils_de_calcul_ETP!F16=\"NON\",0,Outils_de_calcul_ETP!F16=\"\",0)*D19","v":0},{"$f":"Outils_de_calcul_ETP!J16","v":0},0,0]
[null,"Monitorage",{"$f":"IF(Outils_de_calcul_ETP!D17=\"OUI\",Outils_de_calcul_ETP!C17,0)","v":0},{"$f":"IF(C20>0,Outils_de_calcul_ETP!I17,)","v":0},{"$f":"_xlfn.IFS(Outils_de_calcul_ETP!E17=\"Externalisée\",Paramétres!G$5,Outils_de_calcul_ETP!E17=\"Internalisée\",1,Outils_de_calcul_ETP!E17=\"Partagée\",Paramétres!G$6,Outils_de_calcul_ETP!E17=\"NON\",0,Outils_de_calcul_ETP!E17=\"\",0)","v":0},{"$f":"IF(C20<>0, IFERROR(INDEX(Outils_de_calcul_ETP!H:H, MATCH(C20, Outils_de_calcul_ETP!C:C, 0)), 0), 0)","v":0},{"$f":"IFERROR(IF(C20<>0, INDEX(Outils_de_calcul_ETP!G:G, MATCH(C20, Outils_de_calcul_ETP!C:C, 0)), IF(C20=0, 0)), 0)","v":0},{"$f":"_xlfn.IFS(Outils_de_calcul_ETP!F17=\"Atelier biomédical\",Paramétres!G$10,Outils_de_calcul_ETP!F17=\"Service de soins\",Paramétres!G$9,Outils_de_calcul_ETP!F17=\"Site extérieur\",Paramétres!G$11,Outils_de_calcul_ETP!F17=\"NON\",0,Outils_de_calcul_ETP!F17=\"\",0)*D20","v":0},{"$f":"Outils_de_calcul_ETP!J17","v":0},0,0]
[null,"Monitorage",{"$f":"IF(Outils_de_calcul_ETP!D18=\"OUI\",Outils_de_calcul_ETP!C18,0)","v":0},{"$f":"IF(C21>0,Outils_de_calcul_ETP!I18,)","v":0},{"$f":"_xlfn.IFS(Outils_de_calcul_ETP!E18=\"Externalisée\",Paramétres!G$5,Outils_de_calcul_ETP!E18=\"Internalisée\",1,Outils_de_calcul_ETP!E18=\"Partagée\",Paramétres!G$6,Outils_de_calcul_ETP!E18=\"NON\",0,Outils_de_calcul_ETP!E18=\"\",0)","v":0},{"$f":"IF(C21<>0, IFERROR(INDEX(Outils_de_calcul_ETP!H:H, MATCH(C21, Outils_de_calcul_ETP!C:C, 0)), 0), 0)","v":0},{"$f":"IFERROR(IF(C21<>0, INDEX(Outils_de_calcul_ETP!G:G, MATCH(C21, Outils_de_calcul_ETP!C:C, 0)), IF(C21=0, 0)), 0)","v":0},{"$f":"_xlfn.IFS(Outils_de_calcul_ETP!F18=\"Atelier biomédical\",Paramétres!G$10,Outils_de_calcul_ETP!F18=\"Service de soins\",Paramétres!G$9,Outils_de_calcul_ETP!F18=\"Site extérieur\",Paramétres!G$11,Outils_de_calcul_ETP!F18=\"NON\",0,Outils_de_calcul_ETP!F18=\"\",0)*D21","v":0},{"$f":"Outils_de_calcul_ETP!J18","v":0},0,0]
[null,"Dialyse",{"$f":"IF(Outils_de_calcul_ETP!D19=\"OUI\",Outils_de_calcul_ETP!C19,0)","v":0},{"$f":"IF(C22>0,Outils_de_calcul_ETP!I19,)","v":0},{"$f":"_xlfn.IFS(Outils_de_calcul_ETP!E19=\"Externalisée\",Paramétres!G$5,Outils_de_calcul_ETP!E19=\"Internalisée\",1,Outils_de_calcul_ETP!E19=\"Partagée\",Paramétres!G$6,Outils_de_calcul_ETP!E19=\"NON\",0,Outils_de_calcul_ETP!E19=\"\",0)","v":0},{"$f":"IF(C22<>0, IFERROR(INDEX(Outils_de_calcul_ETP!H:H, MATCH(C22, Outils_de_calcul_ETP!C:C, 0)), 0), 0)","v":0},{"$f":"IFERROR(IF(C22<>0, INDEX(Outils_de_calcul_ETP!G:G, MATCH(C22, Outils_de_calcul_ETP!C:C, 0)), IF(C22=0, 0)), 0)","v":0},{"$f":"_xlfn.IFS(Outils_de_calcul_ETP!F19=\"Atelier biomédical\",Paramétres!G$10,Outils_de_calcul_ETP!F19=\"Service de soins\",Paramétres!G$9,Outils_de_calcul_ETP!F19=\"Site extérieur\",Paramétres!G$11,Outils_de_calcul_ETP!F19=\"NON\",0,Outils_de_calcul_ETP!F19=\"\",0)*D22","v":0},{"$f":"Outils_de_calcul_ETP!J19","v":0},0,0]
[null,"Dialyse",{"$f":"IF(Outils_de_calcul_ETP!D20=\"OUI\",Outils_de_calcul_ETP!C20,0)","v":0},{"$f":"IF(C23>0,Outils_de_calcul_ETP!I20,)","v":0},{"$f":"_xlfn.IFS(Outils_de_calcul_ETP!E20=\"Externalisée\",Paramétres!G$5,Outils_de_calcul_ETP!E20=\"Internalisée\",1,Outils_de_calcul_ETP!E20=\"Partagée\",Paramétres!G$6,Outils_de_calcul_ETP!E20=\"NON\",0,Outils_de_calcul_ETP!E20=\"\",0)","v":0},{"$f":"IF(C23<>0, IFERROR(INDEX(Outils_de_calcul_ETP!H:H, MATCH(C23, Outils_de_calcul_ETP!C:C, 0)), 0), 0)","v":0},{"$f":"IFERROR(IF(C23<>0, INDEX(Outils_de_calcul_ETP!G:G, MATCH(C23, Outils_de_calcul_ETP!C:C, 0)), IF(C23=0, 0)), 0)","v":0},{"$f":"_xlfn.IFS(Outils_de_calcul_ETP!F20=\"Atelier biomédical\",Paramétres!G$10,Outils_de_calcul_ETP!F20=\"Service de soins\",Paramétres!G$9,Outils_de_calcul_ETP!F20=\"Site extérieur\",Paramétres!G$11,Outils_de_calcul_ETP!F20=\"NON\",0,Outils_de_calcul_ETP!F20=\"\",0)*D23","v":0},{"$f":"Outils_de_calcul_ETP!J20","v":0},0,0]
[null,"Dialyse",{"$f":"IF(Outils_de_calcul_ETP!D21=\"OUI\",Outils_de_calcul_ETP!C21,0)","v":0},{"$f":"IF(C24>0,Outils_de_calcul_ETP!I21,)","v":0},{"$f":"_xlfn.IFS(Outils_de_calcul_ETP!E21=\"Externalisée\",Paramétres!G$5,Outils_de_calcul_ETP!E21=\"Internalisée\",1,Outils_de_calcul_ETP!E21=\"Partagée\",Paramétres!G$6,Outils_de_calcul_ETP!E21=\"NON\",0,Outils_de_calcul_ETP!E21=\"\",0)","v":0},{"$f":"IF(C24<>0, IFERROR(INDEX(Outils_de_calcul_ETP!H:H, MATCH(C24, Outils_de_calcul_ETP!C:C, 0)), 0), 0)","v":0},{"$f":"IFERROR(IF(C24<>0, INDEX(Outils_de_calcul_ETP!G:G, MATCH(C24, Outils_de_calcul_ETP!C:C, 0)), IF(C24=0, 0)), 0)","v":0},{"$f":"_xlfn.IFS(Outils_de_calcul_ETP!F21=\"Atelier biomédical\",Paramétres!G$10,Outils_de_calcul_ETP!F21=\"Service de soins\",Paramétres!G$9,Outils_de_calcul_ETP!F21=\"Site extérieur\",Paramétres!G$11,Outils_de_calcul_ETP!F21=\"NON\",0,Outils_de_calcul_ETP!F21=\"\",0)*D24","v":0},{"$f":"Outils_de_calcul_ETP!J21","v":0},0,0]
[null,"Thermie",{"$f":"IF(Outils_de_calcul_ETP!D22=\"OUI\",Outils_de_calcul_ETP!C22,0)","v":0},{"$f":"IF(C25>0,Outils_de_calcul_ETP!I22,)","v":0},{"$f":"_xlfn.IFS(Outils_de_calcul_ETP!E22=\"Externalisée\",Paramétres!G$5,Outils_de_calcul_ETP!E22=\"Internalisée\",1,Outils_de_calcul_ETP!E22=\"Partagée\",Paramétres!G$6,Outils_de_calcul_ETP!E22=\"NON\",0,Outils_de_calcul_ETP!E22=\"\",0)","v":0},{"$f":"IF(C25<>0, IFERROR(INDEX(Outils_de_calcul_ETP!H:H, MATCH(C25, Outils_de_calcul_ETP!C:C, 0)), 0), 0)","v":0},{"$f":"IFERROR(IF(C25<>0, INDEX(Outils_de_calcul_ETP!G:G, MATCH(C25, Outils_de_calcul_ETP!C:C, 0)), IF(C25=0, 0)), 0)","v":0},{"$f":"_xlfn.IFS(Outils_de_calcul_ETP!F22=\"Atelier biomédical\",Paramétres!G$10,Outils_de_calcul_ETP!F22=\"Service de soins\",Paramétres!G$9,Outils_de_calcul_ETP!F22=\"Site extérieur\",Paramétres!G$11,Outils_de_calcul_ETP!F22=\"NON\",0,Outils_de_calcul_ETP!F22=\"\",0)*D25","v":0},{"$f":"Outils_de_calcul_ETP!J22","v":0},0,0]
[null,"Thermie",{"$f":"IF(Outils_de_calcul_ETP!D23=\"OUI\",Outils_de_calcul_ETP!C23,0)","v":0},{"$f":"IF(C26>0,Outils_de_calcul_ETP!I23,)","v":0},{"$f":"_xlfn.IFS(Outils_de_calcul_ETP!E23=\"Externalisée\",Paramétres!G$5,Outils_de_calcul_ETP!E23=\"Internalisée\",1,Outils_de_calcul_ETP!E23=\"Partagée\",Paramétres!G$6,Outils_de_calcul_ETP!E23=\"NON\",0,Outils_de_calcul_ETP!E23=\"\",0)","v":0},{"$f":"IF(C26<>0, IFERROR(INDEX(Outils_de_calcul_ETP!H:H, MATCH(C26, Outils_de_calcul_ETP!C:C, 0)), 0), 0)","v":0},{"$f":"IFERROR(IF(C26<>0, INDEX(Outils_de_calcul_ETP!G:G, MATCH(C26, Outils_de_calcul_ETP!C:C, 0)), IF(C26=0, 0)), 0)","v":0},{"$f":"_xlfn.IFS(Outils_de_calcul_ETP!F23=\"Atelier biomédical\",Paramétres!G$10,Outils_de_calcul_ETP!F23=\"Service de soins\",Paramétres!G$9,Outils_de_calcul_ETP!F23=\"Site extérieur\",Paramétres!G$11,Outils_de_calcul_ETP!F23=\"NON\",0,Outils_de_calcul_ETP!F23=\"\",0)*D26","v":0},{"$f":"Outils_de_calcul_ETP!J23","v":0},0,0]
[null,"Thermie",{"$f":"IF(Outils_de_calcul_ETP!D24=\"OUI\",Outils_de_calcul_ETP!C24,0)","v":0},{"$f":"IF(C27>0,Outils_de_calcul_ETP!I24,)","v":0},{"$f":"_xlfn.IFS(Outils_de_calcul_ETP!E24=\"Externalisée\",Paramétres!G$5,Outils_de_calcul_ETP!E24=\"Internalisée\",1,Outils_de_calcul_ETP!E24=\"Partagée\",Paramétres!G$6,Outils_de_calcul_ETP!E24=\"NON\",0,Outils_de_calcul_ETP!E24=\"\",0)","v":0},{"$f":"IF(C27<>0, IFERROR(INDEX(Outils_de_calcul_ETP!H:H, MATCH(C27, Outils_de_calcul_ETP!C:C, 0)), 0), 0)","v":0},{"$f":"IFERROR(IF(C27<>0, INDEX(Outils_de_calcul_ETP!G:G, MATCH(C27, Outils_de_calcul_ETP!C:C, 0)), IF(C27=0, 0)), 0)","v":0},{"$f":"_xlfn.IFS(Outils_de_calcul_ETP!F24=\"Atelier biomédical\",Paramétres!G$10,Outils_de_calcul_ETP!F24=\"Service de soins\",Paramétres!G$9,Outils_de_calcul_ETP!F24=\"Site extérieur\",Paramétres!G$11,Outils_de_calcul_ETP!F24=\"NON\",0,Outils_de_calcul_ETP!F24=\"\",0)*D27","v":0},{"$f":"Outils_de_calcul_ETP!J24","v":0},0,0]
[null,"Thermie",{"$f":"IF(Outils_de_calcul_ETP!D25=\"OUI\",Outils_de_calcul_ETP!C25,0)","v":0},{"$f":"IF(C28>0,Outils_de_calcul_ETP!I25,)","v":0},{"$f":"_xlfn.IFS(Outils_de_calcul_ETP!E25=\"Externalisée\",Paramétres!G$5,Outils_de_calcul_ETP!E25=\"Internalisée\",1,Outils_de_calcul_ETP!E25=\"Partagée\",Paramétres!G$6,Outils_de_calcul_ETP!E25=\"NON\",0,Outils_de_calcul_ETP!E25=\"\",0)","v":0},{"$f":"IF(C28<>0, IFERROR(INDEX(Outils_de_calcul_ETP!H:H, MATCH(C28, Outils_de_calcul_ETP!C:C, 0)), 0), 0)","v":0},{"$f":"IFERROR(IF(C28<>0, INDEX(Outils_de_calcul_ETP!G:G, MATCH(C28, Outils_de_calcul_ETP!C:C, 0)), IF(C28=0, 0)), 0)","v":0},{"$f":"_xlfn.IFS(Outils_de_calcul_ETP!F25=\"Atelier biomédical\",Paramétres!G$10,Outils_de_calcul_ETP!F25=\"Service de soins\",Paramétres!G$9,Outils_de_calcul_ETP!F25=\"Site extérieur\",Paramétres!G$11,Outils_de_calcul_ETP!F25=\"NON\",0,Outils_de_calcul_ETP!F25=\"\",0)*D28","v":0},{"$f":"Outils_de_calcul_ETP!J25","v":0},0,0]
[null,"Thermie",{"$f":"IF(Outils_de_calcul_ETP!D26=\"OUI\",Outils_de_calcul_ETP!C26,0)","v":0},{"$f":"IF(C29>0,Outils_de_calcul_ETP!I26,)","v":0},{"$f":"_xlfn.IFS(Outils_de_calcul_ETP!E26=\"Externalisée\",Paramétres!G$5,Outils_de_calcul_ETP!E26=\"Internalisée\",1,Outils_de_calcul_ETP!E26=\"Partagée\",Paramétres!G$6,Outils_de_calcul_ETP!E26=\"NON\",0,Outils_de_calcul_ETP!E26=\"\",0)","v":0},{"$f":"IF(C29<>0, IFERROR(INDEX(Outils_de_calcul_ETP!H:H, MATCH(C29, Outils_de_calcul_ETP!C:C, 0)), 0), 0)","v":0},{"$f":"IFERROR(IF(C29<>0, INDEX(Outils_de_calcul_ETP!G:G, MATCH(C29, Outils_de_calcul_ETP!C:C, 0)), IF(C29=0, 0)), 0)","v":0},{"$f":"_xlfn.IFS(Outils_de_calcul_ETP!F26=\"Atelier biomédical\",Paramétres!G$10,Outils_de_calcul_ETP!F26=\"Service de soins\",Paramétres!G$9,Outils_de_calcul_ETP!F26=\"Site extérieur\",Paramétres!G$11,Outils_de_calcul_ETP!F26=\"NON\",0,Outils_de_calcul_ETP!F26=\"\",0)*D29","v":0},{"$f":"Outils_de_calcul_ETP!J26","v":0},0,0]
[null,"Perfusion",{"$f":"IF(Outils_de_calcul_ETP!D27=\"OUI\",Outils_de_calcul_ETP!C27,0)","v":0},{"$f":"IF(C30>0,Outils_de_calcul_ETP!I27,)","v":0},{"$f":"_xlfn.IFS(Outils_de_calcul_ETP!E27=\"Externalisée\",Paramétres!G$5,Outils_de_calcul_ETP!E27=\"Internalisée\",1,Outils_de_calcul_ETP!E27=\"Partagée\",Paramétres!G$6,Outils_de_calcul_ETP!E27=\"NON\",0,Outils_de_calcul_ETP!E27=\"\",0)","v":0},{"$f":"IF(C30<>0, IFERROR(INDEX(Outils_de_calcul_ETP!H:H, MATCH(C30, Outils_de_calcul_ETP!C:C, 0)), 0), 0)","v":0},{"$f":"IFERROR(IF(C30<>0, INDEX(Outils_de_calcul_ETP!G:G, MATCH(C30, Outils_de_calcul_ETP!C:C, 0)), IF(C30=0, 0)), 0)","v":0},{"$f":"_xlfn.IFS(Outils_de_calcul_ETP!F27=\"Atelier biomédical\",Paramétres!G$10,Outils_de_calcul_ETP!F27=\"Service de soins\",Paramétres!G$9,Outils_de_calcul_ETP!F27=\"Site extérieur\",Paramétres!G$11,Outils_de_calcul_ETP!F27=\"NON\",0,Outils_de_calcul_ETP!F27=\"\",0)*D30","v":0},{"$f":"Outils_de_calcul_ETP!J27","v":0},0,0]
[null,"Perfusion",{"$f":"IF(Outils_de_calcul_ETP!D28=\"OUI\",Outils_de_calcul_ETP!C28,0)","v":0},{"$f":"IF(C31>0,Outils_de_calcul_ETP!I28,)","v":0},{"$f":"_xlfn.IFS(Outils_de_calcul_ETP!E28=\"Externalisée\",Paramétres!G$5,Outils_de_calcul_ETP!E28=\"Internalisée\",1,Outils_de_calcul_ETP!E28=\"Partagée\",Paramétres!G$6,Outils_de_calcul_ETP!E28=\"NON\",0,Outils_de_calcul_ETP!E28=\"\",0)","v":0},{"$f":"IF(C31<>0, IFERROR(INDEX(Outils_de_calcul_ETP!H:H, MATCH(C31, Outils_de_calcul_ETP!C:C, 0)), 0), 0)","v":0},{"$f":"IFERROR(IF(C31<>0, INDEX(Outils_de_calcul_ETP!G:G, MATCH(C31, Outils_de_calcul_ETP!C:C, 0)), IF(C31=0, 0)), 0)","v":0},{"$f":"_xlfn.IFS(Outils_de_calcul_ETP!F28=\"Atelier biomédical\",Paramétres!G$10,Outils_de_calcul_ETP!F28=\"Service de soins\",Paramétres!G$9,Outils_de_calcul_ETP!F28=\"Site extérieur\",Paramétres!G$11,Outils_de_calcul_ETP!F28=\"NON\",0,Outils_de_calcul_ETP!F28=\"\",0)*D31","v":0},{"$f":"Outils_de_calcul_ETP!J28","v":0},0,0]
[null,"Chirurgie",{"$f":"IF(Outils_de_calcul_ETP!D29=\"OUI\",Outils_de_calcul_ETP!C29,0)","v":0},{"$f":"IF(C32>0,Outils_de_calcul_ETP!I29,)","v":0},{"$f":"_xlfn.IFS(Outils_de_calcul_ETP!E29=\"Externalisée\",Paramétres!G$5,Outils_de_calcul_ETP!E29=\"Internalisée\",1,Outils_de_calcul_ETP!E29=\"Partagée\",Paramétres!G$6,Outils_de_calcul_ETP!E29=\"NON\",0,Outils_de_calcul_ETP!E29=\"\",0)","v":0},{"$f":"IF(C32<>0, IFERROR(INDEX(Outils_de_calcul_ETP!H:H, MATCH(C32, Outils_de_calcul_ETP!C:C, 0)), 0), 0)","v":0},{"$f":"IFERROR(IF(C32<>0, INDEX(Outils_de_calcul_ETP!G:G, MATCH(C32, Outils_de_calcul_ETP!C:C, 0)), IF(C32=0, 0)), 0)","v":0},{"$f":"_xlfn.IFS(Outils_de_calcul_ETP!F29=\"Atelier biomédical\",Paramétres!G$10,Outils_de_calcul_ETP!F29=\"Service de soins\",Paramétres!G$9,Outils_de_calcul_ETP!F29=\"Site extérieur\",Paramétres!G$11,Outils_de_calcul_ETP!F29=\"NON\",0,Outils_de_calcul_ETP!F29=\"\",0)*D32","v":0},{"$f":"Outils_de_calcul_ETP!J29","v":0},0,0]
[null,"Chirurgie",{"$f":"IF(Outils_de_calcul_ETP!D30=\"OUI\",Outils_de_calcul_ETP!C30,0)","v":0},{"$f":"IF(C33>0,Outils_de_calcul_ETP!I30,)","v":0},{"$f":"_xlfn.IFS(Outils_de_calcul_ETP!E30=\"Externalisée\",Paramétres!G$5,Outils_de_calcul_ETP!E30=\"Internalisée\",1,Outils_de_calcul_ETP!E30=\"Partagée\",Paramétres!G$6,Outils_de_calcul_ETP!E30=\"NON\",0,Outils_de_calcul_ETP!E30=\"\",0)","v":0},{"$f":"IF(C33<>0, IFERROR(INDEX(Outils_de_calcul_ETP!H:H, MATCH(C33, Outils_de_calcul_ETP!C:C, 0)), 0), 0)","v":0},{"$f":"IFERROR(IF(C33<>0, INDEX(Outils_de_calcul_ETP!G:G, MATCH(C33, Outils_de_calcul_ETP!C:C, 0)), IF(C33=0, 0)), 0)","v":0},{"$f":"_xlfn.IFS(Outils_de_calcul_ETP!F30=\"Atelier biomédical\",Paramétres!G$10,Outils_de_calcul_ETP!F30=\"Service de soins\",Paramétres!G$9,Outils_de_calcul_ETP!F30=\"Site extérieur\",Paramétres!G$11,Outils_de_calcul_ETP!F30=\"NON\",0,Outils_de_calcul_ETP!F30=\"\",0)*D33","v":0},{"$f":"Outils_de_calcul_ETP!J30","v":0},0,0]
[null,"Chirurgie",{"$f":"IF(Outils_de_calcul_ETP!D31=\"OUI\",Outils_de_calcul_ETP!C31,0)","v":0},{"$f":"IF(C34>0,Outils_de_calcul_ETP!I31,)","v":0},{"$f":"_xlfn.IFS(Outils_de_calcul_ETP!E31=\"Externalisée\",Paramétres!G$5,Outils_de_calcul_ETP!E31=\"Internalisée\",1,Outils_de_calcul_ETP!E31=\"Partagée\",Paramétres!G$6,Outils_de_calcul_ETP!E31=\"NON\",0,Outils_de_calcul_ETP!E31=\"\",0)","v":0},{"$f":"IF(C34<>0, IFERROR(INDEX(Outils_de_calcul_ETP!H:H, MATCH(C34, Outils_de_calcul_ETP!C:C, 0)), 0), 0)","v":0},{"$f":"IFERROR(IF(C34<>0, INDEX(Outils_de_calcul_ETP!G:G, MATCH(C34, Outils_de_calcul_ETP!C:C, 0)), IF(C34=0, 0)), 0)","v":0},{"$f":"_xlfn.IFS(Outils_de_calcul_ETP!F31=\"Atelier biomédical\",Paramétres!G$10,Outils_de_calcul_ETP!F31=\"Service de soins\",Paramétres!G$9,Outils_de_calcul_ETP!F31=\"Site extérieur\",Paramétres!G$11,Outils_de_calcul_ETP!F31=\"NON\",0,Outils_de_calcul_ETP!F31=\"\",0)*D34","v":0},{"$f":"Outils_de_calcul_ETP!J31","v":0},0,0]
[null,"Imagerie",{"$f":"IF(Outils_de_calcul_ETP!D32=\"OUI\",Outils_de_calcul_ETP!C32,0)","v":0},{"$f":"IF(C35>0,Outils_de_calcul_ETP!I32,)","v":0},{"$f":"_xlfn.IFS(Outils_de_calcul_ETP!E32=\"Externalisée\",Paramétres!G$5,Outils_de_calcul_ETP!E32=\"Internalisée\",1,Outils_de_calcul_ETP!E32=\"Partagée\",Paramétres!G$6,Outils_de_calcul_ETP!E32=\"NON\",0,Outils_de_calcul_ETP!E32=\"\",0)","v":0},{"$f":"IF(C35<>0, IFERROR(INDEX(Outils_de_calcul_ETP!H:H, MATCH(C35, Outils_de_calcul_ETP!C:C, 0)), 0), 0)","v":0},{"$f":"IFERROR(IF(C35<>0, INDEX(Outils_de_calcul_ETP!G:G, MATCH(C35, Outils_de_calcul_ETP!C:C, 0)), IF(C35=0, 0)), 0)","v":0},{"$f":"_xlfn.IFS(Outils_de_calcul_ETP!F32=\"Atelier biomédical\",Paramétres!G$10,Outils_de_calcul_ETP!F32=\"Service de soins\",Paramétres!G$9,Outils_de_calcul_ETP!F32=\"Site extérieur\",Paramétres!G$11,Outils_de_calcul_ETP!F32=\"NON\",0,Outils_de_calcul_ETP!F32=\"\",0)*D35","v":0},{"$f":"Outils_de_calcul_ETP!J32","v":0},0,0]
[null,null,{"$f":"IF(Outils_de_calcul_ETP!D33=\"OUI\",Outils_de_calcul_ETP!C33,0)","v":0},{"$f":"IF(C36>0,Outils_de_calcul_ETP!I33,)","v":0},{"$f":"_xlfn.IFS(Outils_de_calcul_ETP!E33=\"Externalisée\",Paramétres!G$5,Outils_de_calcul_ETP!E33=\"Internalisée\",1,Outils_de_calcul_ETP!E33=\"Partagée\",Paramétres!G$6,Outils_de_calcul_ETP!E33=\"NON\",0,Outils_de_calcul_ETP!E33=\"\",0)","v":0},{"$f":"_xlfn.IFS(C36<>0,_xlfn.XLOOKUP(C36,Outils_de_calcul_ETP!C:C,Outils_de_calcul_ETP!H:H),C36=0,0)","v":0},{"$f":"VLOOKUP(_xlfn.IFS(C36<>0,_xlfn.XLOOKUP(C36,Outils_de_calcul_ETP!C:C,Outils_de_calcul_ETP!G:G),C36=0,0),'Feuil-cachée'!J$19:K$46,2,0)","v":0},{"$f":"_xlfn.IFS(Outils_de_calcul_ETP!F33=\"Atelier biomédical\",Paramétres!G$10,Outils_de_calcul_ETP!F33=\"Service de soins\",Paramétres!G$9,Outils_de_calcul_ETP!F33=\"NON\",0,Outils_de_calcul_ETP!F33=\"\",0)","v":0},null,{"$f":"D36*F36*G36*E36*H36","v":0},{"$f":"(J36/O$4)","v":{"$error":"#DIV/0!"}}]
[null,"Imagerie",{"$f":"IF(Outils_de_calcul_ETP!D34=\"OUI\",Outils_de_calcul_ETP!C34,0)","v":0},{"$f":"IF(C37>0,Outils_de_calcul_ETP!I34,)","v":0},{"$f":"_xlfn.IFS(Outils_de_calcul_ETP!E34=\"Externalisée\",Paramétres!G$5,Outils_de_calcul_ETP!E34=\"Internalisée\",1,Outils_de_calcul_ETP!E34=\"Partagée\",Paramétres!G$6,Outils_de_calcul_ETP!E34=\"NON\",0,Outils_de_calcul_ETP!E34=\"\",0)","v":0},{"$f":"IF(C37<>0, IFERROR(INDEX(Outils_de_calcul_ETP!H:H, MATCH(C37, Outils_de_calcul_ETP!C:C, 0)), 0), 0)","v":0},{"$f":"IFERROR(IF(C37<>0, INDEX(Outils_de_calcul_ETP!G:G, MATCH(C37, Outils_de_calcul_ETP!C:C, 0)), IF(C37=0, 0)), 0)","v":0},{"$f":"_xlfn.IFS(Outils_de_calcul_ETP!F34=\"Atelier biomédical\",Paramétres!G$10,Outils_de_calcul_ETP!F34=\"Service de soins\",Paramétres!G$9,Outils_de_calcul_ETP!F34=\"Site extérieur\",Paramétres!G$11,Outils_de_calcul_ETP!F34=\"NON\",0,Outils_de_calcul_ETP!F34=\"\",0)*D37","v":0},{"$f":"Outils_de_calcul_ETP!J34","v":0},{"$f":"(D37*F37*G37*E37)+I37+H37","v":0},{"$f":"(J37/O$5)","v":0}]
[null,"Imagerie",{"$f":"IF(Outils_de_calcul_ETP!D35=\"OUI\",Outils_de_calcul_ETP!C35,0)","v":0},{"$f":"IF(C38>0,Outils_de_calcul_ETP!I35,)","v":0},{"$f":"_xlfn.IFS(Outils_de_calcul_ETP!E35=\"Externalisée\",Paramétres!G$5,Outils_de_calcul_ETP!E35=\"Internalisée\",1,Outils_de_calcul_ETP!E35=\"Partagée\",Paramétres!G$6,Outils_de_calcul_ETP!E35=\"NON\",0,Outils_de_calcul_ETP!E35=\"\",0)","v":0},{"$f":"IF(C38<>0, IFERROR(INDEX(Outils_de_calcul_ETP!H:H, MATCH(C38, Outils_de_calcul_ETP!C:C, 0)), 0), 0)","v":0},{"$f":"IFERROR(IF(C38<>0, INDEX(Outils_de_calcul_ETP!G:G, MATCH(C38, Outils_de_calcul_ETP!C:C, 0)), IF(C38=0, 0)), 0)","v":0},{"$f":"_xlfn.IFS(Outils_de_calcul_ETP!F35=\"Atelier biomédical\",Paramétres!G$10,Outils_de_calcul_ETP!F35=\"Service de soins\",Paramétres!G$9,Outils_de_calcul_ETP!F35=\"Site extérieur\",Paramétres!G$11,Outils_de_calcul_ETP!F35=\"NON\",0,Outils_de_calcul_ETP!F35=\"\",0)*D38","v":0},{"$f":"Outils_de_calcul_ETP!J35","v":0},0,{"$f":"(J38/O$5)","v":0}]
[null,"Imagerie",{"$f":"IF(Outils_de_calcul_ETP!D36=\"OUI\",Outils_de_calcul_ETP!C36,0)","v":0},{"$f":"IF(C39>0,Outils_de_calcul_ETP!I36,)","v":0},{"$f":"_xlfn.IFS(Outils_de_calcul_ETP!E36=\"Externalisée\",Paramétres!G$5,Outils_de_calcul_ETP!E36=\"Internalisée\",1,Outils_de_calcul_ETP!E36=\"Partagée\",Paramétres!G$6,Outils_de_calcul_ETP!E36=\"NON\",0,Outils_de_calcul_ETP!E36=\"\",0)","v":0},{"$f":"IF(C39<>0, IFERROR(INDEX(Outils_de_calcul_ETP!H:H, MATCH(C39, Outils_de_calcul_ETP!C:C, 0)), 0), 0)","v":0},{"$f":"IFERROR(IF(C39<>0, INDEX(Outils_de_calcul_ETP!G:G, MATCH(C39, Outils_de_calcul_ETP!C:C, 0)), IF(C39=0, 0)), 0)","v":0},{"$f":"_xlfn.IFS(Outils_de_calcul_ETP!F36=\"Atelier biomédical\",Paramétres!G$10,Outils_de_calcul_ETP!F36=\"Service de soins\",Paramétres!G$9,Outils_de_calcul_ETP!F36=\"Site extérieur\",Paramétres!G$11,Outils_de_calcul_ETP!F36=\"NON\",0,Outils_de_calcul_ETP!F36=\"\",0)*D39","v":0},{"$f":"Outils_de_calcul_ETP!J36","v":0},0,{"$f":"(J39/O$5)","v":0}]
[null,{"$f":"IF(Outils_de_calcul_ETP!D37=\"OUI\",Outils_de_calcul_ETP!B37,0)","v":0},{"$f":"IF(Outils_de_calcul_ETP!D37=\"OUI\",Outils_de_calcul_ETP!C37,0)","v":0},{"$f":"IF(C40>0,Outils_de_calcul_ETP!I37,)","v":0},{"$f":"_xlfn.IFS(Outils_de_calcul_ETP!E37=\"Externalisée\",Paramétres!G$5,Outils_de_calcul_ETP!E37=\"Internalisée\",1,Outils_de_calcul_ETP!E37=\"Partagée\",Paramétres!G$6,Outils_de_calcul_ETP!E37=\"NON\",0,Outils_de_calcul_ETP!E37=\"\",0)","v":0},{"$f":"IF(C40<>0, IFERROR(INDEX(Outils_de_calcul_ETP!H:H, MATCH(C40, Outils_de_calcul_ETP!C:C, 0)), 0), 0)","v":0},{"$f":"IFERROR(IF(C40<>0, INDEX(Outils_de_calcul_ETP!G:G, MATCH(C40, Outils_de_calcul_ETP!C:C, 0)), IF(C40=0, 0)), 0)","v":0},{"$f":"_xlfn.IFS(Outils_de_calcul_ETP!F37=\"Atelier biomédical\",Paramétres!G$10,Outils_de_calcul_ETP!F37=\"Service de soins\",Paramétres!G$9,Outils_de_calcul_ETP!F37=\"Site extérieur\",Paramétres!G$11,Outils_de_calcul_ETP!F37=\"NON\",0,Outils_de_calcul_ETP!F37=\"\",0)*D40","v":0},{"$f":"Outils_de_calcul_ETP!J37","v":0},0,{"$f":"(J40/O$4)","v":{"$error":"#DIV/0!"}}]
[null,{"$f":"IF(Outils_de_calcul_ETP!D38=\"OUI\",Outils_de_calcul_ETP!B38,0)","v":0},{"$f":"IF(Outils_de_calcul_ETP!D38=\"OUI\",Outils_de_calcul_ETP!C38,0)","v":0},{"$f":"IF(C41>0,Outils_de_calcul_ETP!I38,)","v":0},{"$f":"_xlfn.IFS(Outils_de_calcul_ETP!E38=\"Externalisée\",Paramétres!G$5,Outils_de_calcul_ETP!E38=\"Internalisée\",1,Outils_de_calcul_ETP!E38=\"Partagée\",Paramétres!G$6,Outils_de_calcul_ETP!E38=\"NON\",0,Outils_de_calcul_ETP!E38=\"\",0)","v":0},{"$f":"_xlfn.IFS(C41<>0,_xlfn.XLOOKUP(C41,Outils_de_calcul_ETP!C:C,Outils_de_calcul_ETP!H:H),C41=0,0)","v":0},{"$f":"VLOOKUP(_xlfn.IFS(C41<>0,_xlfn.XLOOKUP(C41,Outils_de_calcul_ETP!C:C,Outils_de_calcul_ETP!G:G),C41=0,0),'Feuil-cachée'!J$19:K$46,2,0)","v":0},{"$f":"_xlfn.IFS(Outils_de_calcul_ETP!F38=\"Atelier biomédical\",Paramétres!G$10,Outils_de_calcul_ETP!F38=\"Service de soins\",Paramétres!G$9,Outils_de_calcul_ETP!F38=\"NON\",0,Outils_de_calcul_ETP!F38=\"\",0)","v":0},null,0,{"$error":"#DIV/0!"}]
[null,{"$f":"IF(Outils_de_calcul_ETP!D39=\"OUI\",Outils_de_calcul_ETP!B39,0)","v":0},{"$f":"IF(Outils_de_calcul_ETP!D39=\"OUI\",Outils_de_calcul_ETP!C39,0)","v":0},{"$f":"IF(C42>0,Outils_de_calcul_ETP!I39,)","v":0},{"$f":"_xlfn.IFS(Outils_de_calcul_ETP!E39=\"Externalisée\",Paramétres!G$5,Outils_de_calcul_ETP!E39=\"Internalisée\",1,Outils_de_calcul_ETP!E39=\"Partagée\",Paramétres!G$6,Outils_de_calcul_ETP!E39=\"NON\",0,Outils_de_calcul_ETP!E39=\"\",0)","v":0},{"$f":"_xlfn.IFS(C42<>0,_xlfn.XLOOKUP(C42,Outils_de_calcul_ETP!C:C,Outils_de_calcul_ETP!H:H),C42=0,0)","v":0},{"$f":"VLOOKUP(_xlfn.IFS(C42<>0,_xlfn.XLOOKUP(C42,Outils_de_calcul_ETP!C:C,Outils_de_calcul_ETP!G:G),C42=0,0),'Feuil-cachée'!J$19:K$46,2,0)","v":0},{"$f":"_xlfn.IFS(Outils_de_calcul_ETP!F39=\"Atelier biomédical\",Paramétres!G$10,Outils_de_calcul_ETP!F39=\"Service de soins\",Paramétres!G$9,Outils_de_calcul_ETP!F39=\"NON\",0,Outils_de_calcul_ETP!F39=\"\",0)","v":0},null,0,{"$error":"#DIV/0!"}]
[null,{"$f":"IF(Outils_de_calcul_ETP!D40=\"OUI\",Outils_de_calcul_ETP!B40,0)","v":0},{"$f":"IF(Outils_de_calcul_ETP!D40=\"OUI\",Outils_de_calcul_ETP!C40,0)","v":0},{"$f":"IF(C43>0,Outils_de_calcul_ETP!I40,)","v":0},{"$f":"_xlfn.IFS(Outils_de_calcul_ETP!E40=\"Externalisée\",Paramétres!G$5,Outils_de_calcul_ETP!E40=\"Internalisée\",1,Outils_de_calcul_ETP!E40=\"Partagée\",Paramétres!G$6,Outils_de_calcul_ETP!E40=\"NON\",0,Outils_de_calcul_ETP!E40=\"\",0)","v":0},{"$f":"_xlfn.IFS(C43<>0,_xlfn.XLOOKUP(C43,Outils_de_calcul_ETP!C:C,Outils_de_calcul_ETP!H:H),C43=0,0)","v":0},{"$f":"VLOOKUP(_xlfn.IFS(C43<>0,_xlfn.XLOOKUP(C43,Outils_de_calcul_ETP!C:C,Outils_de_calcul_ETP!G:G),C43=0,0),'Feuil-cachée'!J$19:K$46,2,0)","v":0},{"$f":"_xlfn.IFS(Outils_de_calcul_ETP!F40=\"Atelier biomédical\",Paramétres!G$10,Outils_de_calcul_ETP!F40=\"Service de soins\",Paramétres!G$9,Outils_de_calcul_ETP!F40=\"NON\",0,Outils_de_calcul_ETP!F40=\"\",0)","v":0},null,0,{"$error":"#DIV/0!"}]
[null,{"$f":"IF(Outils_de_calcul_ETP!D41=\"OUI\",Outils_de_calcul_ETP!B41,0)","v":0},{"$f":"IF(Outils_de_calcul_ETP!D41=\"OUI\",Outils_de_calcul_ETP!C41,0)","v":0},{"$f":"IF(C44>0,Outils_de_calcul_ETP!I41,)","v":0},{"$f":"_xlfn.IFS(Outils_de_calcul_ETP!E41=\"Externalisée\",Paramétres!G$5,Outils_de_calcul_ETP!E41=\"Internalisée\",1,Outils_de_calcul_ETP!E41=\"Partagée\",Paramétres!G$6,Outils_de_calcul_ETP!E41=\"NON\",0,Outils_de_calcul_ETP!E41=\"\",0)","v":0},{"$f":"IF(C44<>0, IFERROR(INDEX(Outils_de_calcul_ETP!H:H, MATCH(C44, Outils_de_calcul_ETP!C:C, 0)), 0), 0)","v":0},{"$f":"IFERROR(IF(C44<>0, INDEX(Outils_de_calcul_ETP!G:G, MATCH(C44, Outils_de_calcul_ETP!C:C, 0)), IF(C44=0, 0)), 0)","v":0},{"$f":"_xlfn.IFS(Outils_de_calcul_ETP!F41=\"Atelier biomédical\",Paramétres!G$10,Outils_de_calcul_ETP!F41=\"Service de soins\",Paramétres!G$9,Outils_de_calcul_ETP!F41=\"Site extérieur\",Paramétres!G$11,Outils_de_calcul_ETP!F41=\"NON\",0,Outils_de_calcul_ETP!F41=\"\",0)*D44","v":0},{"$f":"Outils_de_calcul_ETP!J41","v":0},{"$f":"(D44*F44*G44*E44)+I44+H44","v":0},{"$error":"#DIV/0!"}]
[null,{"$f":"IF(Outils_de_calcul_ETP!D42=\"OUI\",Outils_de_calcul_ETP!B42,0)","v":0},{"$f":"IF(Outils_de_calcul_ETP!D42=\"OUI\",Outils_de_calcul_ETP!C42,0)","v":0},{"$f":"IF(C45>0,Outils_de_calcul_ETP!I42,)","v":0},{"$f":"_xlfn.IFS(Outils_de_calcul_ETP!E42=\"Externalisée\",Paramétres!G$5,Outils_de_calcul_ETP!E42=\"Internalisée\",1,Outils_de_calcul_ETP!E42=\"Partagée\",Paramétres!G$6,Outils_de_calcul_ETP!E42=\"NON\",0,Outils_de_calcul_ETP!E42=\"\",0)","v":0},{"$f":"IF(C45<>0, IFERROR(INDEX(Outils_de_calcul_ETP!H:H, MATCH(C45, Outils_de_calcul_ETP!C:C, 0)), 0), 0)","v":0},{"$f":"IFERROR(IF(C45<>0, INDEX(Outils_de_calcul_ETP!G:G, MATCH(C45, Outils_de_calcul_ETP!C:C, 0)), IF(C45=0, 0)), 0)","v":0},{"$f":"_xlfn.IFS(Outils_de_calcul_ETP!F42=\"Atelier biomédical\",Paramétres!G$10,Outils_de_calcul_ETP!F42=\"Service de soins\",Paramétres!G$9,Outils_de_calcul_ETP!F42=\"Site extérieur\",Paramétres!G$11,Outils_de_calcul_ETP!F42=\"NON\",0,Outils_de_calcul_ETP!F42=\"\",0)*D45","v":0},{"$f":"Outils_de_calcul_ETP!J42","v":0},0,{"$error":"#DIV/0!"}]
[null,{"$f":"IF(Outils_de_calcul_ETP!D43=\"OUI\",Outils_de_calcul_ETP!B43,0)","v":0},{"$f":"IF(Outils_de_calcul_ETP!D43=\"OUI\",Outils_de_calcul_ETP!C43,0)","v":0},{"$f":"IF(C46>0,Outils_de_calcul_ETP!I43,)","v":0},{"$f":"_xlfn.IFS(Outils_de_calcul_ETP!E43=\"Externalisée\",Paramétres!G$5,Outils_de_calcul_ETP!E43=\"Internalisée\",1,Outils_de_calcul_ETP!E43=\"Partagée\",Paramétres!G$6,Outils_de_calcul_ETP!E43=\"NON\",0,Outils_de_calcul_ETP!E43=\"\",0)","v":0},{"$f":"_xlfn.IFS(C46<>0,_xlfn.XLOOKUP(C46,Outils_de_calcul_ETP!C:C,Outils_de_calcul_ETP!H:H),C46=0,0)","v":0},{"$f":"VLOOKUP(_xlfn.IFS(C46<>0,_xlfn.XLOOKUP(C46,Outils_de_calcul_ETP!C:C,Outils_de_calcul_ETP!G:G),C46=0,0),'Feuil-cachée'!J$19:K$46,2,0)","v":0},{"$f":"_xlfn.IFS(Outils_de_calcul_ETP!F43=\"Atelier biomédical\",Paramétres!G$10,Outils_de_calcul_ETP!F43=\"Service de soins\",Paramétres!G$9,Outils_de_calcul_ETP!F43=\"NON\",0,Outils_de_calcul_ETP!F43=\"\",0)","v":0},null,0,{"$error":"#DIV/0!"}]
[null,{"$f":"IF(Outils_de_calcul_ETP!D44=\"OUI\",Outils_de_calcul_ETP!B44,0)","v":0},{"$f":"IF(Outils_de_calcul_ETP!D44=\"OUI\",Outils_de_calcul_ETP!C44,0)","v":0},{"$f":"IF(C47>0,Outils_de_calcul_ETP!I44,)","v":0},{"$f":"_xlfn.IFS(Outils_de_calcul_ETP!E44=\"Externalisée\",Paramétres!G$5,Outils_de_calcul_ETP!E44=\"Internalisée\",1,Outils_de_calcul_ETP!E44=\"Partagée\",Paramétres!G$6,Outils_de_calcul_ETP!E44=\"NON\",0,Outils_de_calcul_ETP!E44=\"\",0)","v":0},{"$f":"_xlfn.IFS(C47<>0,_xlfn.XLOOKUP(C47,Outils_de_calcul_ETP!C:C,Outils_de_calcul_ETP!H:H),C47=0,0)","v":0},{"$f":"VLOOKUP(_xlfn.IFS(C47<>0,_xlfn.XLOOKUP(C47,Outils_de_calcul_ETP!C:C,Outils_de_calcul_ETP!G:G),C47=0,0),'Feuil-cachée'!J$19:K$46,2,0)","v":0},{"$f":"_xlfn.IFS(Outils_de_calcul_ETP!F44=\"Atelier biomédical\",Paramétres!G$10,Outils_de_calcul_ETP!F44=\"Service de soins\",Paramétres!G$9,Outils_de_calcul_ETP!F44=\"NON\",0,Outils_de_calcul_ETP!F44=\"\",0)","v":0},null,0,{"$error":"#DIV/0!"}]
[null,{"$f":"IF(Outils_de_calcul_ETP!D45=\"OUI\",Outils_de_calcul_ETP!B45,0)","v":0},{"$f":"IF(Outils_de_calcul_ETP!D45=\"OUI\",Outils_de_calcul_ETP!C45,0)","v":0},{"$f":"IF(C48>0,Outils_de_calcul_ETP!I45,)","v":0},{"$f":"_xlfn.IFS(Outils_de_calcul_ETP!E45=\"Externalisée\",Paramétres!G$5,Outils_de_calcul_ETP!E45=\"Internalisée\",1,Outils_de_calcul_ETP!E45=\"Partagée\",Paramétres!G$6,Outils_de_calcul_ETP!E45=\"NON\",0,Outils_de_calcul_ETP!E45=\"\",0)","v":0},{"$f":"_xlfn.IFS(C48<>0,_xlfn.XLOOKUP(C48,Outils_de_calcul_ETP!C:C,Outils_de_calcul_ETP!H:H),C48=0,0)","v":0},{"$f":"VLOOKUP(_xlfn.IFS(C48<>0,_xlfn.XLOOKUP(C48,Outils_de_calcul_ETP!C:C,Outils_de_calcul_ETP!G:G),C48=0,0),'Feuil-cachée'!J$19:K$46,2,0)","v":0},{"$f":"_xlfn.IFS(Outils_de_calcul_ETP!F45=\"Atelier biomédical\",Paramétres!G$10,Outils_de_calcul_ETP!F45=\"Service de soins\",Paramétres!G$9,Outils_de_calcul_ETP!F45=\"NON\",0,Outils_de_calcul_ETP!F45=\"\",0)","v":0},null,0,{"$error":"#DIV/0!"}]
[null,{"$f":"IF(Outils_de_calcul_ETP!D46=\"OUI\",Outils_de_calcul_ETP!B46,0)","v":0},{"$f":"IF(Outils_de_calcul_ETP!D46=\"OUI\",Outils_de_calcul_ETP!C46,0)","v":0},{"$f":"IF(C49>0,Outils_de_calcul_ETP!I46,)","v":0},{"$f":"_xlfn.IFS(Outils_de_calcul_ETP!E46=\"Externalisée\",Paramétres!G$5,Outils_de_calcul_ETP!E46=\"Internalisée\",1,Outils_de_calcul_ETP!E46=\"Partagée\",Paramétres!G$6,Outils_de_calcul_ETP!E46=\"NON\",0,Outils_de_calcul_ETP!E46=\"\",0)","v":0},{"$f":"_xlfn.IFS(C49<>0,_xlfn.XLOOKUP(C49,Outils_de_calcul_ETP!C:C,Outils_de_calcul_ETP!H:H),C49=0,0)","v":0},{"$f":"VLOOKUP(_xlfn.IFS(C49<>0,_xlfn.XLOOKUP(C49,Outils_de_calcul_ETP!C:C,Outils_de_calcul_ETP!G:G),C49=0,0),'Feuil-cachée'!J$19:K$46,2,0)","v":0},{"$f":"_xlfn.IFS(Outils_de_calcul_ETP!F46=\"Atelier biomédical\",Paramétres!G$10,Outils_de_calcul_ETP!F46=\"Service de soins\",Paramétres!G$9,Outils_de_calcul_ETP!F46=\"NON\",0,Outils_de_calcul_ETP!F46=\"\",0)","v":0},null,0,{"$error":"#DIV/0!"}]
[null,{"$f":"IF(Outils_de_calcul_ETP!D47=\"OUI\",Outils_de_calcul_ETP!B47,0)","v":0},{"$f":"IF(Outils_de_calcul_ETP!D47=\"OUI\",Outils_de_calcul_ETP!C47,0)","v":0},{"$f":"IF(C50>0,Outils_de_calcul_ETP!I47,)","v":0},{"$f":"_xlfn.IFS(Outils_de_calcul_ETP!E47=\"Externalisée\",Paramétres!G$5,Outils_de_calcul_ETP!E47=\"Internalisée\",1,Outils_de_calcul_ETP!E47=\"Partagée\",Paramétres!G$6,Outils_de_calcul_ETP!E47=\"NON\",0,Outils_de_calcul_ETP!E47=\"\",0)","v":0},{"$f":"_xlfn.IFS(C50<>0,_xlfn.XLOOKUP(C50,Outils_de_calcul_ETP!C:C,Outils_de_calcul_ETP!H:H),C50=0,0)","v":0},{"$f":"VLOOKUP(_xlfn.IFS(C50<>0,_xlfn.XLOOKUP(C50,Outils_de_calcul_ETP!C:C,Outils_de_calcul_ETP!G:G),C50=0,0),'Feuil-cachée'!J$19:K$46,2,0)","v":0},{"$f":"_xlfn.IFS(Outils_de_calcul_ETP!F47=\"Atelier biomédical\",Paramétres!G$10,Outils_de_calcul_ETP!F47=\"Service de soins\",Paramétres!G$9,Outils_de_calcul_ETP!F47=\"NON\",0,Outils_de_calcul_ETP!F47=\"\",0)","v":0},null,0,{"$error":"#DIV/0!"}]
[null,{"$f":"IF(Outils_de_calcul_ETP!D48=\"OUI\",Outils_de_calcul_ETP!B48,0)","v":0},{"$f":"IF(Outils_de_calcul_ETP!D48=\"OUI\",Outils_de_calcul_ETP!C48,0)","v":0},{"$f":"IF(C51>0,Outils_de_calcul_ETP!I48,)","v":0},{"$f":"_xlfn.IFS(Outils_de_calcul_ETP!E48=\"Externalisée\",Paramétres!G$5,Outils_de_calcul_ETP!E48=\"Internalisée\",1,Outils_de_calcul_ETP!E48=\"Partagée\",Paramétres!G$6,Outils_de_calcul_ETP!E48=\"NON\",0,Outils_de_calcul_ETP!E48=\"\",0)","v":0},{"$f":"_xlfn.IFS(C51<>0,_xlfn.XLOOKUP(C51,Outils_de_calcul_ETP!C:C,Outils_de_calcul_ETP!H:H),C51=0,0)","v":0},{"$f":"VLOOKUP(_xlfn.IFS(C51<>0,_xlfn.XLOOKUP(C51,Outils_de_calcul_ETP!C:C,Outils_de_calcul_ETP!G:G),C51=0,0),'Feuil-cachée'!J$19:K$46,2,0)","v":0},{"$f":"_xlfn.IFS(Outils_de_calcul_ETP!F48=\"Atelier biomédical\",Paramétres!G$10,Outils_de_calcul_ETP!F48=\"Service de soins\",Paramétres!G$9,Outils_de_calcul_ETP!F48=\"NON\",0,Outils_de_calcul_ETP!F48=\"\",0)","v":0},null,0,{"$error":"#DIV/0!"}]
[null,{"$f":"IF(Outils_de_calcul_ETP!D49=\"OUI\",Outils_de_calcul_ETP!B49,0)","v":0},{"$f":"IF(Outils_de_calcul_ETP!D49=\"OUI\",Outils_de_calcul_ETP!C49,0)","v":0},{"$f":"IF(C52>0,Outils_de_calcul_ETP!I49,)","v":0},{"$f":"_xlfn.IFS(Outils_de_calcul_ETP!E49=\"Externalisée\",Paramétres!G$5,Outils_de_calcul_ETP!E49=\"Internalisée\",1,Outils_de_calcul_ETP!E49=\"Partagée\",Paramétres!G$6,Outils_de_calcul_ETP!E49=\"NON\",0,Outils_de_calcul_ETP!E49=\"\",0)","v":0},{"$f":"_xlfn.IFS(C52<>0,_xlfn.XLOOKUP(C52,Outils_de_calcul_ETP!C:C,Outils_de_calcul_ETP!H:H),C52=0,0)","v":0},{"$f":"VLOOKUP(_xlfn.IFS(C52<>0,_xlfn.XLOOKUP(C52,Outils_de_calcul_ETP!C:C,Outils_de_calcul_ETP!G:G),C52=0,0),'Feuil-cachée'!J$19:K$46,2,0)","v":0},{"$f":"_xlfn.IFS(Outils_de_calcul_ETP!F49=\"Atelier biomédical\",Paramétres!G$10,Outils_de_calcul_ETP!F49=\"Service de soins\",Paramétres!G$9,Outils_de_calcul_ETP!F49=\"NON\",0,Outils_de_calcul_ETP!F49=\"\",0)","v":0},null,0,{"$error":"#DIV/0!"}]
[null,{"$f":"IF(Outils_de_calcul_ETP!D50=\"OUI\",Outils_de_calcul_ETP!B50,0)","v":0},{"$f":"IF(Outils_de_calcul_ETP!D50=\"OUI\",Outils_de_calcul_ETP!C50,0)","v":0},{"$f":"IF(C53>0,Outils_de_calcul_ETP!I50,)","v":0},{"$f":"_xlfn.IFS(Outils_de_calcul_ETP!E50=\"Externalisée\",Paramétres!G$5,Outils_de_calcul_ETP!E50=\"Internalisée\",1,Outils_de_calcul_ETP!E50=\"Partagée\",Paramétres!G$6,Outils_de_calcul_ETP!E50=\"NON\",0,Outils_de_calcul_ETP!E50=\"\",0)","v":0},{"$f":"_xlfn.IFS(C53<>0,_xlfn.XLOOKUP(C53,Outils_de_calcul_ETP!C:C,Outils_de_calcul_ETP!H:H),C53=0,0)","v":0},{"$f":"VLOOKUP(_xlfn.IFS(C53<>0,_xlfn.XLOOKUP(C53,Outils_de_calcul_ETP!C:C,Outils_de_calcul_ETP!G:G),C53=0,0),'Feuil-cachée'!J$19:K$46,2,0)","v":0},{"$f":"_xlfn.IFS(Outils_de_calcul_ETP!F50=\"Atelier biomédical\",Paramétres!G$10,Outils_de_calcul_ETP!F50=\"Service de soins\",Paramétres!G$9,Outils_de_calcul_ETP!F50=\"NON\",0,Outils_de_calcul_ETP!F50=\"\",0)","v":0},null,0,{"$error":"#DIV/0!"}]
[null,{"$f":"IF(Outils_de_calcul_ETP!D51=\"OUI\",Outils_de_calcul_ETP!B51,0)","v":0},{"$f":"IF(Outils_de_calcul_ETP!D51=\"OUI\",Outils_de_calcul_ETP!C51,0)","v":0},{"$f":"IF(C54>0,Outils_de_calcul_ETP!I51,)","v":0},{"$f":"_xlfn.IFS(Outils_de_calcul_ETP!E51=\"Externalisée\",Paramétres!G$5,Outils_de_calcul_ETP!E51=\"Internalisée\",1,Outils_de_calcul_ETP!E51=\"Partagée\",Paramétres!G$6,Outils_de_calcul_ETP!E51=\"NON\",0,Outils_de_calcul_ETP!E51=\"\",0)","v":0},{"$f":"_xlfn.IFS(C54<>0,_xlfn.XLOOKUP(C54,Outils_de_calcul_ETP!C:C,Outils_de_calcul_ETP!H:H),C54=0,0)","v":0},{"$f":"VLOOKUP(_xlfn.IFS(C54<>0,_xlfn.XLOOKUP(C54,Outils_de_calcul_ETP!C:C,Outils_de_calcul_ETP!G:G),C54=0,0),'Feuil-cachée'!J$19:K$46,2,0)","v":0},{"$f":"_xlfn.IFS(Outils_de_calcul_ETP!F51=\"Atelier biomédical\",Paramétres!G$10,Outils_de_calcul_ETP!F51=\"Service de soins\",Paramétres!G$9,Outils_de_calcul_ETP!F51=\"NON\",0,Outils_de_calcul_ETP!F51=\"\",0)","v":0},null,0,{"$error":"#DIV/0!"}]
[null,{"$f":"IF(Outils_de_calcul_ETP!D52=\"OUI\",Outils_de_calcul_ETP!B52,0)","v":0},{"$f":"IF(Outils_de_calcul_ETP!D52=\"OUI\",Outils_de_calcul_ETP!C52,0)","v":0},{"$f":"IF(C55>0,Outils_de_calcul_ETP!I52,)","v":0},{"$f":"_xlfn.IFS(Outils_de_calcul_ETP!E52=\"Externalisée\",Paramétres!G$5,Outils_de_calcul_ETP!E52=\"Internalisée\",1,Outils_de_calcul_ETP!E52=\"Partagée\",Paramétres!G$6,Outils_de_calcul_ETP!E52=\"NON\",0,Outils_de_calcul_ETP!E52=\"\",0)","v":0},{"$f":"_xlfn.IFS(C55<>0,_xlfn.XLOOKUP(C55,Outils_de_calcul_ETP!C:C,Outils_de_calcul_ETP!H:H),C55=0,0)","v":0},{"$f":"VLOOKUP(_xlfn.IFS(C55<>0,_xlfn.XLOOKUP(C55,Outils_de_calcul_ETP!C:C,Outils_de_calcul_ETP!G:G),C55=0,0),'Feuil-cachée'!J$19:K$46,2,0)","v":0},{"$f":"_xlfn.IFS(Outils_de_calcul_ETP!F52=\"Atelier biomédical\",Paramétres!G$10,Outils_de_calcul_ETP!F52=\"Service de soins\",Paramétres!G$9,Outils_de_calcul_ETP!F52=\"NON\",0,Outils_de_calcul_ETP!F52=\"\",0)","v":0},null,0,{"$error":"#DIV/0!"}]
[null,{"$f":"IF(Outils_de_calcul_ETP!D53=\"OUI\",Outils_de_calcul_ETP!B53,0)","v":0},{"$f":"IF(Outils_de_calcul_ETP!D53=\"OUI\",Outils_de_calcul_ETP!C53,0)","v":0},{"$f":"IF(C56>0,Outils_de_calcul_ETP!I53,)","v":0},{"$f":"_xlfn.IFS(Outils_de_calcul_ETP!E53=\"Externalisée\",Paramétres!G$5,Outils_de_calcul_ETP!E53=\"Internalisée\",1,Outils_de_calcul_ETP!E53=\"Partagée\",Paramétres!G$6,Outils_de_calcul_ETP!E53=\"NON\",0,Outils_de_calcul_ETP!E53=\"\",0)","v":0},{"$f":"_xlfn.IFS(C56<>0,_xlfn.XLOOKUP(C56,Outils_de_calcul_ETP!C:C,Outils_de_calcul_ETP!H:H),C56=0,0)","v":0},{"$f":"VLOOKUP(_xlfn.IFS(C56<>0,_xlfn.XLOOKUP(C56,Outils_de_calcul_ETP!C:C,Outils_de_calcul_ETP!G:G),C56=0,0),'Feuil-cachée'!J$19:K$46,2,0)","v":0},{"$f":"_xlfn.IFS(Outils_de_calcul_ETP!F53=\"Atelier biomédical\",Paramétres!G$10,Outils_de_calcul_ETP!F53=\"Service de soins\",Paramétres!G$9,Outils_de_calcul_ETP!F53=\"NON\",0,Outils_de_calcul_ETP!F53=\"\",0)","v":0},null,0,{"$error":"#DIV/0!"}]
[null,{"$f":"IF(Outils_de_calcul_ETP!D54=\"OUI\",Outils_de_calcul_ETP!B54,0)","v":0},{"$f":"IF(Outils_de_calcul_ETP!D54=\"OUI\",Outils_de_calcul_ETP!C54,0)","v":0},{"$f":"IF(C57>0,Outils_de_calcul_ETP!I54,)","v":0},{"$f":"_xlfn.IFS(Outils_de_calcul_ETP!E54=\"Externalisée\",Paramétres!G$5,Outils_de_calcul_ETP!E54=\"Internalisée\",1,Outils_de_calcul_ETP!E54=\"Partagée\",Paramétres!G$6,Outils_de_calcul_ETP!E54=\"NON\",0,Outils_de_calcul_ETP!E54=\"\",0)","v":0},{"$f":"_xlfn.IFS(C57<>0,_xlfn.XLOOKUP(C57,Outils_de_calcul_ETP!C:C,Outils_de_calcul_ETP!H:H),C57=0,0)","v":0},{"$f":"VLOOKUP(_xlfn.IFS(C57<>0,_xlfn.XLOOKUP(C57,Outils_de_calcul_ETP!C:C,Outils_de_calcul_ETP!G:G),C57=0,0),'Feuil-cachée'!J$19:K$46,2,0)","v":0},{"$f":"_xlfn.IFS(Outils_de_calcul_ETP!F54=\"Atelier biomédical\",Paramétres!G$10,Outils_de_calcul_ETP!F54=\"Service de soins\",Paramétres!G$9,Outils_de_calcul_ETP!F54=\"NON\",0,Outils_de_calcul_ETP!F54=\"\",0)","v":0},null,0,{"$error":"#DIV/0!"}]
[null,{"$f":"IF(Outils_de_calcul_ETP!D55=\"OUI\",Outils_de_calcul_ETP!B55,0)","v":0},{"$f":"IF(Outils_de_calcul_ETP!D55=\"OUI\",Outils_de_calcul_ETP!C55,0)","v":0},{"$f":"IF(C58>0,Outils_de_calcul_ETP!I55,)","v":0},{"$f":"_xlfn.IFS(Outils_de_calcul_ETP!E55=\"Externalisée\",Paramétres!G$5,Outils_de_calcul_ETP!E55=\"Internalisée\",1,Outils_de_calcul_ETP!E55=\"Partagée\",Paramétres!G$6,Outils_de_calcul_ETP!E55=\"NON\",0,Outils_de_calcul_ETP!E55=\"\",0)","v":0},{"$f":"_xlfn.IFS(C58<>0,_xlfn.XLOOKUP(C58,Outils_de_calcul_ETP!C:C,Outils_de_calcul_ETP!H:H),C58=0,0)","v":0},{"$f":"VLOOKUP(_xlfn.IFS(C58<>0,_xlfn.XLOOKUP(C58,Outils_de_calcul_ETP!C:C,Outils_de_calcul_ETP!G:G),C58=0,0),'Feuil-cachée'!J$19:K$46,2,0)","v":0},{"$f":"_xlfn.IFS(Outils_de_calcul_ETP!F55=\"Atelier biomédical\",Paramétres!G$10,Outils_de_calcul_ETP!F55=\"Service de soins\",Paramétres!G$9,Outils_de_calcul_ETP!F55=\"NON\",0,Outils_de_calcul_ETP!F55=\"\",0)","v":0},null,0,{"$error":"#DIV/0!"}]
[null,{"$f":"IF(Outils_de_calcul_ETP!D56=\"OUI\",Outils_de_calcul_ETP!B56,0)","v":0},{"$f":"IF(Outils_de_calcul_ETP!D56=\"OUI\",Outils_de_calcul_ETP!C56,0)","v":0},{"$f":"IF(C59>0,Outils_de_calcul_ETP!I56,)","v":0},{"$f":"_xlfn.IFS(Outils_de_calcul_ETP!E56=\"Externalisée\",Paramétres!G$5,Outils_de_calcul_ETP!E56=\"Internalisée\",1,Outils_de_calcul_ETP!E56=\"Partagée\",Paramétres!G$6,Outils_de_calcul_ETP!E56=\"NON\",0,Outils_de_calcul_ETP!E56=\"\",0)","v":0},{"$f":"_xlfn.IFS(C59<>0,_xlfn.XLOOKUP(C59,Outils_de_calcul_ETP!C:C,Outils_de_calcul_ETP!H:H),C59=0,0)","v":0},{"$f":"VLOOKUP(_xlfn.IFS(C59<>0,_xlfn.XLOOKUP(C59,Outils_de_calcul_ETP!C:C,Outils_de_calcul_ETP!G:G),C59=0,0),'Feuil-cachée'!J$19:K$46,2,0)","v":0},{"$f":"_xlfn.IFS(Outils_de_calcul_ETP!F56=\"Atelier biomédical\",Paramétres!G$10,Outils_de_calcul_ETP!F56=\"Service de soins\",Paramétres!G$9,Outils_de_calcul_ETP!F56=\"NON\",0,Outils_de_calcul_ETP!F56=\"\",0)","v":0},null,0,{"$error":"#DIV/0!"}]
[null,{"$f":"IF(Outils_de_calcul_ETP!D57=\"OUI\",Outils_de_calcul_ETP!B57,0)","v":0},{"$f":"IF(Outils_de_calcul_ETP!D57=\"OUI\",Outils_de_calcul_ETP!C57,0)","v":0},{"$f":"IF(C60>0,Outils_de_calcul_ETP!I57,)","v":0},{"$f":"_xlfn.IFS(Outils_de_calcul_ETP!E57=\"Externalisée\",Paramétres!G$5,Outils_de_calcul_ETP!E57=\"Internalisée\",1,Outils_de_calcul_ETP!E57=\"Partagée\",Paramétres!G$6,Outils_de_calcul_ETP!E57=\"NON\",0,Outils_de_calcul_ETP!E57=\"\",0)","v":0},{"$f":"_xlfn.IFS(C60<>0,_xlfn.XLOOKUP(C60,Outils_de_calcul_ETP!C:C,Outils_de_calcul_ETP!H:H),C60=0,0)","v":0},{"$f":"VLOOKUP(_xlfn.IFS(C60<>0,_xlfn.XLOOKUP(C60,Outils_de_calcul_ETP!C:C,Outils_de_calcul_ETP!G:G),C60=0,0),'Feuil-cachée'!J$19:K$46,2,0)","v":0},{"$f":"_xlfn.IFS(Outils_de_calcul_ETP!F57=\"Atelier biomédical\",Paramétres!G$10,Outils_de_calcul_ETP!F57=\"Service de soins\",Paramétres!G$9,Outils_de_calcul_ETP!F57=\"NON\",0,Outils_de_calcul_ETP!F57=\"\",0)","v":0},null,0,{"$error":"#DIV/0!"}]
[null,{"$f":"IF(Outils_de_calcul_ETP!D58=\"OUI\",Outils_de_calcul_ETP!B58,0)","v":0},{"$f":"IF(Outils_de_calcul_ETP!D58=\"OUI\",Outils_de_calcul_ETP!C58,0)","v":0},{"$f":"IF(C61>0,Outils_de_calcul_ETP!I58,)","v":0},{"$f":"_xlfn.IFS(Outils_de_calcul_ETP!E58=\"Externalisée\",Paramétres!G$5,Outils_de_calcul_ETP!E58=\"Internalisée\",1,Outils_de_calcul_ETP!E58=\"Partagée\",Paramétres!G$6,Outils_de_calcul_ETP!E58=\"NON\",0,Outils_de_calcul_ETP!E58=\"\",0)","v":0},{"$f":"_xlfn.IFS(C61<>0,_xlfn.XLOOKUP(C61,Outils_de_calcul_ETP!C:C,Outils_de_calcul_ETP!H:H),C61=0,0)","v":0},{"$f":"VLOOKUP(_xlfn.IFS(C61<>0,_xlfn.XLOOKUP(C61,Outils_de_calcul_ETP!C:C,Outils_de_calcul_ETP!G:G),C61=0,0),'Feuil-cachée'!J$19:K$46,2,0)","v":0},{"$f":"_xlfn.IFS(Outils_de_calcul_ETP!F58=\"Atelier biomédical\",Paramétres!G$10,Outils_de_calcul_ETP!F58=\"Service de soins\",Paramétres!G$9,Outils_de_calcul_ETP!F58=\"NON\",0,Outils_de_calcul_ETP!F58=\"\",0)","v":0},null,0,{"$error":"#DIV/0!"}]
[null,{"$f":"IF(Outils_de_calcul_ETP!D59=\"OUI\",Outils_de_calcul_ETP!B59,0)","v":0},{"$f":"IF(Outils_de_calcul_ETP!D59=\"OUI\",Outils_de_calcul_ETP!C59,0)","v":0},{"$f":"IF(C62>0,Outils_de_calcul_ETP!I59,)","v":0},{"$f":"_xlfn.IFS(Outils_de_calcul_ETP!E59=\"Externalisée\",Paramétres!G$5,Outils_de_calcul_ETP!E59=\"Internalisée\",1,Outils_de_calcul_ETP!E59=\"Partagée\",Paramétres!G$6,Outils_de_calcul_ETP!E59=\"NON\",0,Outils_de_calcul_ETP!E59=\"\",0)","v":0},{"$f":"_xlfn.IFS(C62<>0,_xlfn.XLOOKUP(C62,Outils_de_calcul_ETP!C:C,Outils_de_calcul_ETP!H:H),C62=0,0)","v":0},{"$f":"VLOOKUP(_xlfn.IFS(C62<>0,_xlfn.XLOOKUP(C62,Outils_de_calcul_ETP!C:C,Outils_de_calcul_ETP!G:G),C62=0,0),'Feuil-cachée'!J$19:K$46,2,0)","v":0},{"$f":"_xlfn.IFS(Outils_de_calcul_ETP!F59=\"Atelier biomédical\",Paramétres!G$10,Outils_de_calcul_ETP!F59=\"Service de soins\",Paramétres!G$9,Outils_de_calcul_ETP!F59=\"NON\",0,Outils_de_calcul_ETP!F59=\"\",0)","v":0},null,0,{"$error":"#DIV/0!"}]
[null,{"$f":"IF(Outils_de_calcul_ETP!D60=\"OUI\",Outils_de_calcul_ETP!B60,0)","v":0},{"$f":"IF(Outils_de_calcul_ETP!D60=\"OUI\",Outils_de_calcul_ETP!C60,0)","v":0},{"$f":"IF(C63>0,Outils_de_calcul_ETP!I60,)","v":0},{"$f":"_xlfn.IFS(Outils_de_calcul_ETP!E60=\"Externalisée\",Paramétres!G$5,Outils_de_calcul_ETP!E60=\"Internalisée\",1,Outils_de_calcul_ETP!E60=\"Partagée\",Paramétres!G$6,Outils_de_calcul_ETP!E60=\"NON\",0,Outils_de_calcul_ETP!E60=\"\",0)","v":0},{"$f":"_xlfn.IFS(C63<>0,_xlfn.XLOOKUP(C63,Outils_de_calcul_ETP!C:C,Outils_de_calcul_ETP!H:H),C63=0,0)","v":0},{"$f":"VLOOKUP(_xlfn.IFS(C63<>0,_xlfn.XLOOKUP(C63,Outils_de_calcul_ETP!C:C,Outils_de_calcul_ETP!G:G),C63=0,0),'Feuil-cachée'!J$19:K$46,2,0)","v":0},{"$f":"_xlfn.IFS(Outils_de_calcul_ETP!F60=\"Atelier biomédical\",Paramétres!G$10,Outils_de_calcul_ETP!F60=\"Service de soins\",Paramétres!G$9,Outils_de_calcul_ETP!F60=\"NON\",0,Outils_de_calcul_ETP!F60=\"\",0)","v":0},null,0,{"$error":"#DIV/0!"}]
[null,{"$f":"IF(Outils_de_calcul_ETP!D61=\"OUI\",Outils_de_calcul_ETP!B61,0)","v":0},{"$f":"IF(Outils_de_calcul_ETP!D61=\"OUI\",Outils_de_calcul_ETP!C61,0)","v":0},{"$f":"IF(C64>0,Outils_de_calcul_ETP!I61,)","v":0},{"$f":"_xlfn.IFS(Outils_de_calcul_ETP!E61=\"Externalisée\",Paramétres!G$5,Outils_de_calcul_ETP!E61=\"Internalisée\",1,Outils_de_calcul_ETP!E61=\"Partagée\",Paramétres!G$6,Outils_de_calcul_ETP!E61=\"NON\",0,Outils_de_calcul_ETP!E61=\"\",0)","v":0},{"$f":"_xlfn.IFS(C64<>0,_xlfn.XLOOKUP(C64,Outils_de_calcul_ETP!C:C,Outils_de_calcul_ETP!H:H),C64=0,0)","v":0},{"$f":"VLOOKUP(_xlfn.IFS(C64<>0,_xlfn.XLOOKUP(C64,Outils_de_calcul_ETP!C:C,Outils_de_calcul_ETP!G:G),C64=0,0),'Feuil-cachée'!J$19:K$46,2,0)","v":0},{"$f":"_xlfn.IFS(Outils_de_calcul_ETP!F61=\"Atelier biomédical\",Paramétres!G$10,Outils_de_calcul_ETP!F61=\"Service de soins\",Paramétres!G$9,Outils_de_calcul_ETP!F61=\"NON\",0,Outils_de_calcul_ETP!F61=\"\",0)","v":0},null,0,{"$error":"#DIV/0!"}]
[null,{"$f":"IF(Outils_de_calcul_ETP!D62=\"OUI\",Outils_de_calcul_ETP!B62,0)","v":0},{"$f":"IF(Outils_de_calcul_ETP!D62=\"OUI\",Outils_de_calcul_ETP!C62,0)","v":0},{"$f":"IF(C65>0,Outils_de_calcul_ETP!I62,)","v":0},{"$f":"_xlfn.IFS(Outils_de_calcul_ETP!E62=\"Externalisée\",Paramétres!G$5,Outils_de_calcul_ETP!E62=\"Internalisée\",1,Outils_de_calcul_ETP!E62=\"Partagée\",Paramétres!G$6,Outils_de_calcul_ETP!E62=\"NON\",0,Outils_de_calcul_ETP!E62=\"\",0)","v":0},{"$f":"_xlfn.IFS(C65<>0,_xlfn.XLOOKUP(C65,Outils_de_calcul_ETP!C:C,Outils_de_calcul_ETP!H:H),C65=0,0)","v":0},{"$f":"VLOOKUP(_xlfn.IFS(C65<>0,_xlfn.XLOOKUP(C65,Outils_de_calcul_ETP!C:C,Outils_de_calcul_ETP!G:G),C65=0,0),'Feuil-cachée'!J$19:K$46,2,0)","v":0},{"$f":"_xlfn.IFS(Outils_de_calcul_ETP!F62=\"Atelier biomédical\",Paramétres!G$10,Outils_de_calcul_ETP!F62=\"Service de soins\",Paramétres!G$9,Outils_de_calcul_ETP!F62=\"NON\",0,Outils_de_calcul_ETP!F62=\"\",0)","v":0},null,0,{"$error":"#DIV/0!"}]
[null,{"$f":"IF(Outils_de_calcul_ETP!D63=\"OUI\",Outils_de_calcul_ETP!B63,0)","v":0},{"$f":"IF(Outils_de_calcul_ETP!D63=\"OUI\",Outils_de_calcul_ETP!C63,0)","v":0},{"$f":"IF(C66>0,Outils_de_calcul_ETP!I63,)","v":0},{"$f":"_xlfn.IFS(Outils_de_calcul_ETP!E63=\"Externalisée\",Paramétres!G$5,Outils_de_calcul_ETP!E63=\"Internalisée\",1,Outils_de_calcul_ETP!E63=\"Partagée\",Paramétres!G$6,Outils_de_calcul_ETP!E63=\"NON\",0,Outils_de_calcul_ETP!E63=\"\",0)","v":0},{"$f":"_xlfn.IFS(C66<>0,_xlfn.XLOOKUP(C66,Outils_de_calcul_ETP!C:C,Outils_de_calcul_ETP!H:H),C66=0,0)","v":0},{"$f":"VLOOKUP(_xlfn.IFS(C66<>0,_xlfn.XLOOKUP(C66,Outils_de_calcul_ETP!C:C,Outils_de_calcul_ETP!G:G),C66=0,0),'Feuil-cachée'!J$19:K$46,2,0)","v":0},{"$f":"_xlfn.IFS(Outils_de_calcul_ETP!F63=\"Atelier biomédical\",Paramétres!G$10,Outils_de_calcul_ETP!F63=\"Service de soins\",Paramétres!G$9,Outils_de_calcul_ETP!F63=\"NON\",0,Outils_de_calcul_ETP!F63=\"\",0)","v":0},null,0,{"$error":"#DIV/0!"}]
[null,{"$f":"IF(Outils_de_calcul_ETP!D64=\"OUI\",Outils_de_calcul_ETP!B64,0)","v":0},{"$f":"IF(Outils_de_calcul_ETP!D64=\"OUI\",Outils_de_calcul_ETP!C64,0)","v":0},{"$f":"IF(C67>0,Outils_de_calcul_ETP!I64,)","v":0},{"$f":"_xlfn.IFS(Outils_de_calcul_ETP!E64=\"Externalisée\",Paramétres!G$5,Outils_de_calcul_ETP!E64=\"Internalisée\",1,Outils_de_calcul_ETP!E64=\"Partagée\",Paramétres!G$6,Outils_de_calcul_ETP!E64=\"NON\",0,Outils_de_calcul_ETP!E64=\"\",0)","v":0},{"$f":"_xlfn.IFS(C67<>0,_xlfn.XLOOKUP(C67,Outils_de_calcul_ETP!C:C,Outils_de_calcul_ETP!H:H),C67=0,0)","v":0},{"$f":"VLOOKUP(_xlfn.IFS(C67<>0,_xlfn.XLOOKUP(C67,Outils_de_calcul_ETP!C:C,Outils_de_calcul_ETP!G:G),C67=0,0),'Feuil-cachée'!J$19:K$46,2,0)","v":0},{"$f":"_xlfn.IFS(Outils_de_calcul_ETP!F64=\"Atelier biomédical\",Paramétres!G$10,Outils_de_calcul_ETP!F64=\"Service de soins\",Paramétres!G$9,Outils_de_calcul_ETP!F64=\"NON\",0,Outils_de_calcul_ETP!F64=\"\",0)","v":0},null,0,{"$error":"#DIV/0!"}]
[null,{"$f":"IF(Outils_de_calcul_ETP!D65=\"OUI\",Outils_de_calcul_ETP!B65,0)","v":0},{"$f":"IF(Outils_de_calcul_ETP!D65=\"OUI\",Outils_de_calcul_ETP!C65,0)","v":0},{"$f":"IF(C68>0,Outils_de_calcul_ETP!I65,)","v":0},{"$f":"_xlfn.IFS(Outils_de_calcul_ETP!E65=\"Externalisée\",Paramétres!G$5,Outils_de_calcul_ETP!E65=\"Internalisée\",1,Outils_de_calcul_ETP!E65=\"Partagée\",Paramétres!G$6,Outils_de_calcul_ETP!E65=\"NON\",0,Outils_de_calcul_ETP!E65=\"\",0)","v":0},{"$f":"_xlfn.IFS(C68<>0,_xlfn.XLOOKUP(C68,Outils_de_calcul_ETP!C:C,Outils_de_calcul_ETP!H:H),C68=0,0)","v":0},{"$f":"VLOOKUP(_xlfn.IFS(C68<>0,_xlfn.XLOOKUP(C68,Outils_de_calcul_ETP!C:C,Outils_de_calcul_ETP!G:G),C68=0,0),'Feuil-cachée'!J$19:K$46,2,0)","v":0},{"$f":"_xlfn.IFS(Outils_de_calcul_ETP!F65=\"Atelier biomédical\",Paramétres!G$10,Outils_de_calcul_ETP!F65=\"Service de soins\",Paramétres!G$9,Outils_de_calcul_ETP!F65=\"NON\",0,Outils_de_calcul_ETP!F65=\"\",0)","v":0},null,0,{"$error":"#DIV/0!"}]
[null,{"$f":"IF(Outils_de_calcul_ETP!D66=\"OUI\",Outils_de_calcul_ETP!B66,0)","v":0},{"$f":"IF(Outils_de_calcul_ETP!D66=\"OUI\",Outils_de_calcul_ETP!C66,0)","v":0},{"$f":"IF(C69>0,Outils_de_calcul_ETP!I66,)","v":0},{"$f":"_xlfn.IFS(Outils_de_calcul_ETP!E66=\"Externalisée\",Paramétres!G$5,Outils_de_calcul_ETP!E66=\"Internalisée\",1,Outils_de_calcul_ETP!E66=\"Partagée\",Paramétres!G$6,Outils_de_calcul_ETP!E66=\"NON\",0,Outils_de_calcul_ETP!E66=\"\",0)","v":0},{"$f":"_xlfn.IFS(C69<>0,_xlfn.XLOOKUP(C69,Outils_de_calcul_ETP!C:C,Outils_de_calcul_ETP!H:H),C69=0,0)","v":0},{"$f":"VLOOKUP(_xlfn.IFS(C69<>0,_xlfn.XLOOKUP(C69,Outils_de_calcul_ETP!C:C,Outils_de_calcul_ETP!G:G),C69=0,0),'Feuil-cachée'!J$19:K$46,2,0)","v":0},{"$f":"_xlfn.IFS(Outils_de_calcul_ETP!F66=\"Atelier biomédical\",Paramétres!G$10,Outils_de_calcul_ETP!F66=\"Service de soins\",Paramétres!G$9,Outils_de_calcul_ETP!F66=\"NON\",0,Outils_de_calcul_ETP!F66=\"\",0)","v":0},null,0,{"$error":"#DIV/0!"}]
[null,{"$f":"IF(Outils_de_calcul_ETP!D67=\"OUI\",Outils_de_calcul_ETP!B67,0)","v":0},{"$f":"IF(Outils_de_calcul_ETP!D67=\"OUI\",Outils_de_calcul_ETP!C67,0)","v":0},{"$f":"IF(C70>0,Outils_de_calcul_ETP!I67,)","v":0},{"$f":"_xlfn.IFS(Outils_de_calcul_ETP!E67=\"Externalisée\",Paramétres!G$5,Outils_de_calcul_ETP!E67=\"Internalisée\",1,Outils_de_calcul_ETP!E67=\"Partagée\",Paramétres!G$6,Outils_de_calcul_ETP!E67=\"NON\",0,Outils_de_calcul_ETP!E67=\"\",0)","v":0},{"$f":"_xlfn.IFS(C70<>0,_xlfn.XLOOKUP(C70,Outils_de_calcul_ETP!C:C,Outils_de_calcul_ETP!H:H),C70=0,0)","v":0},{"$f":"VLOOKUP(_xlfn.IFS(C70<>0,_xlfn.XLOOKUP(C70,Outils_de_calcul_ETP!C:C,Outils_de_calcul_ETP!G:G),C70=0,0),'Feuil-cachée'!J$19:K$46,2,0)","v":0},{"$f":"_xlfn.IFS(Outils_de_calcul_ETP!F67=\"Atelier biomédical\",Paramétres!G$10,Outils_de_calcul_ETP!F67=\"Service de soins\",Paramétres!G$9,Outils_de_calcul_ETP!F67=\"NON\",0,Outils_de_calcul_ETP!F67=\"\",0)","v":0},null,0,{"$error":"#DIV/0!"}]
[null,{"$f":"IF(Outils_de_calcul_ETP!D68=\"OUI\",Outils_de_calcul_ETP!B68,0)","v":0},{"$f":"IF(Outils_de_calcul_ETP!D68=\"OUI\",Outils_de_calcul_ETP!C68,0)","v":0},{"$f":"IF(C71>0,Outils_de_calcul_ETP!I68,)","v":0},{"$f":"_xlfn.IFS(Outils_de_calcul_ETP!E68=\"Externalisée\",Paramétres!G$5,Outils_de_calcul_ETP!E68=\"Internalisée\",1,Outils_de_calcul_ETP!E68=\"Partagée\",Paramétres!G$6,Outils_de_calcul_ETP!E68=\"NON\",0,Outils_de_calcul_ETP!E68=\"\",0)","v":0},{"$f":"IF(C71<>0, IFERROR(INDEX(Outils_de_calcul_ETP!H:H, MATCH(C71, Outils_de_calcul_ETP!C:C, 0)), 0), 0)","v":0},{"$f":"IFERROR(IF(C71<>0, INDEX(Outils_de_calcul_ETP!G:G, MATCH(C71, Outils_de_calcul_ETP!C:C, 0)), IF(C71=0, 0)), 0)","v":0},{"$f":"_xlfn.IFS(Outils_de_calcul_ETP!F68=\"Atelier biomédical\",Paramétres!G$10,Outils_de_calcul_ETP!F68=\"Service de soins\",Paramétres!G$9,Outils_de_calcul_ETP!F68=\"Site extérieur\",Paramétres!G$11,Outils_de_calcul_ETP!F68=\"NON\",0,Outils_de_calcul_ETP!F68=\"\",0)*D71","v":0},{"$f":"Outils_de_calcul_ETP!J68","v":0},{"$f":"(D71*F71*G71*E71)+I71+H71","v":0},{"$error":"#DIV/0!"}]

{"sheet":"Résultats graphiques","index":5,"n_rows":20,"n_cols":16,"rows_kept":20,"cut":false,"hidden":false,"merged":[]}
[]
[]
[]
[]
[]
[null,null,null,null,null,null,null,null,null,null,null,null,null,null,"Étiquettes de lignes","Somme de Tps Total en Heures"]
[null,null,null,null,null,null,null,null,null,null,null,null,null,null,0,0]
[null,null,null,null,null,null,null,null,null,null,null,null,null,null,"(vide)"]
[null,null,null,null,null,null,null,null,null,null,null,null,null,null,"Total général",0]
[null,null,null,null,null,null,null,null,"Étiquettes de lignes","Somme de Tps Total en Heures"]
[null,null,null,null,null,null,null,null,"Chirurgie",0]
[null,null,null,null,null,null,null,null,"Dialyse",0]
[null,null,null,null,null,null,null,null,"Imagerie",0]
[null,null,null,null,null,null,null,null,"Monitorage",0]
[null,null,null,null,null,null,null,null,"Perfusion",0]
[null,null,null,null,null,null,null,null,"Thermie",0]
[null,null,null,null,null,null,null,null,"Ventilation",0]
[null,null,null,null,null,null,null,null,"(vide)",0]
[null,null,null,null,null,null,null,null,0,0]
[null,null,null,null,null,null,null,null,"Total général",0]

{"sheet":"Feuil-cachée","index":6,"n_rows":156,"n_cols":18,"rows_kept":156,"cut":false,"hidden":true,"merged":[]}
[]
[]
[]
[null,null,null,null,null,null,null,null,null,null,null,null,null,null,null,null,null,"Temps"]
[null,null,null,null,null,null,null,null,null,null,null,null,null,null,null,null,null,0.25]
[null,null,null,null,null,null,null,null,null,null,null,null,null,null,null,null,null,0.5]
[null,null,null,null,null,null,null,null,null,null,null,1,null,null,null,null,null,0.75]
[null,"Périodicité","Tps périodicité",null,null,null,null,null,"Temps de logistique/DM",null,null,2,null,null,null,null,null,1]
[null,"1MP/3ans",0.33,null,null,null,null,null,null,null,null,3,null,null,null,null,null,1.25]
[null,"1MP/2ans",0.5,null,null,null,null,null,null,null,null,4,null,null,null,null,null,1.5]
[null,"1MP/1 an",1,null,null,null,null,null,null,null,null,5,null,null,null,null,null,1.75]
[null,"1MP/6mois",2,null,null,null,null,null,null,null,null,6,null,{"$f":"Accueil!J16","v":0},{"$f":"_xlfn.XLOOKUP(N12,J20:J31,K20:K31)","v":{"$error":"#NAME?"}},null,null,2]
[null,null,3,null,null,null,null,null,null,null,null,null,null,null,null,null,null,2.25]
[null,null,4,null,null,null,null,null,null,null,null,null,null,null,null,null,null,2.5]
[null,null,5,null,null,null,null,null,null,null,null,null,null,null,null,"Ventilation",null,2.75]
[null,null,6,null,null,null,null,null,null,null,null,null,null,null,null,"Monitorage",null,3]
[null,null,null,null,null,null,null,null,null,null,null,null,null,null,null,"Dialyse",null,3.25]
[null,null,null,null,null,null,null,null,null,"Temps de récupération moyen d'un DM",null,null,null,null,null,"Thermie",null,3.5]
[null,null,null,null,null,null,null,null,null,0,0,null,null,null,null,"Perfusion",null,3.75]
[null,null,null,null,null,null,null,null,null,"5 Minutes",8.3333333300000006E-2,null,null,null,null,"Chirurgie",null,4]
[null,null,null,null,null,"Temps de maintenance",null,null,null,"10 Minutes",0.16666666599999999,null,null,{"$f":"_xlfn.XLOOKUP('Feuil-cachée'!J21,'Feuil-cachée'!J20:J31,'Feuil-cachée'!K20:K31)","v":0.16666666599999999},null,"Imagerie",null,4.25]
[null,"OUI",null,null,null,1,null,null,null,"15 Minutes",0.25,null,null,null,null,"Autre",null,4.5]
[null,"NON",null,null,null,2,null,null,null,"20 Minutes",0.33333333139999999,null,null,null,null,null,null,4.75]
[null,null,null,null,null,3,null,null,null,"25 Minutes",0.41666666409999997,null,null,null,null,null,null,5]
[null,null,null,null,null,4,null,null,null,"30 Minutes",0.49999999680000001,null,null,null,null,null,null,5.25]
[null,"Internalisée",1,null,null,5,null,null,null,"35 Minutes",0.58333332950000005,null,null,{"$f":"'Résultats numériques'!J11","v":0},null,null,null,5.5]
[null,"Externalisée",{"$f":"Paramétres!G5","v":0.05},null,null,6,null,null,null,"40 Minutes",0.66666666220000004,null,null,null,null,null,null,5.75]
[null,"Partagée",{"$f":"Paramétres!G6","v":0.5},null,null,7,null,null,null,"45 Minutes",0.75,null,null,null,null,null,null,6]
[null,"Non",null,null,null,8,null,null,null,"50 Minutes",0.83333332760000001,null,null,null,null,null,null,6.25]
[null,null,null,null,null,null,null,null,null,"55 Minutes",0.91666666029999999,null,null,null,null,null,null,6.5]
[null,"Atelier biomédical",null,null,null,null,null,null,null,"1 Heure",1,null,null,null,null,null,null,6.75]
[null,"Service de soins",null,null,null,null,null,null,null,"1H05",1.0833333328999999,null,null,null,null,null,null,7]
[null,"Site extérieur",null,null,null,null,null,null,null,"1H10",1.1666666662,null,null,{"$f":"VLOOKUP(J20:J47,K20:K47,K20:K47)","v":{"$error":"#N/A"}},null,null,null,7.25]
[null,null,null,null,null,null,null,null,null,"1H15",1.2499999995,null,null,{"$error":"#N/A"},null,null,null,7.5]
[null,null,null,null,null,null,null,null,null,"1H20",1.3333333328000001,null,null,{"$error":"#N/A"},null,null,null,7.75]
[null,null,null,null,null,null,null,null,null,"1H25",1.4166666661,null,null,{"$error":"#N/A"},null,null,null,8]
[null,null,null,null,null,null,null,null,null,"1H30",1.4999999994,null,null,{"$error":"#N/A"},null,null,null,8.25]
[null,null,null,null,null,null,null,null,null,"1H35",1.5833333327000001,null,null,{"$error":"#N/A"},null,null,null,8.5]
[null,null,null,null,null,null,null,null,null,"1H40",1.666666666,null,null,{"$error":"#N/A"},null,null,null,8.75]
[null,null,null,null,null,null,null,null,null,"1H45",1.7499999992999999,null,null,{"$error":"#N/A"},null,null,null,9]
[null,null,null,null,null,null,null,null,null,"1H50",1.8333333326000001,null,null,{"$error":"#N/A"},null,null,null,9.25]
[null,null,null,null,null,null,null,null,null,"1H55",1.9166666659,null,null,{"$error":"#N/A"},null,null,null,9.5]
[null,null,null,null,null,null,null,null,null,"2 Heures",1.9999999991999999,null,null,{"$error":"#N/A"},null,null,null,9.75]
[null,null,null,null,null,null,null,null,null,"2H05",2.0833333325000001,null,null,{"$error":"#N/A"},null,null,null,10]
[null,null,null,null,null,null,null,null,null,"2H10",2.1666666657999998,null,null,{"$error":"#N/A"}]
[null,null,null,null,null,null,null,null,null,"2H15",2.2499999990999999,null,null,{"$error":"#N/A"}]
[null,"Temps de récupération moyen d'un DM",null,null,null,null,null,null,null,"2H20",2.3333333324000001,null,null,{"$error":"#N/A"}]
[null,null,0,0,{"$f":"ROUND(C48,2)","v":0},null,null,null,null,"2H25",2.4166666657000002,null,null,{"$error":"#N/A"}]
[null,null,0.08,"5 Minutes",{"$f":"ROUND(C49,2)","v":0.08},null,null,null,null,"2H30",2.4999999989999999,null,null,{"$error":"#N/A"}]
[null,null,0.17,"10 Minutes",0.17,null,null,null,null,"2H35",2.5833333323000001,null,null,{"$error":"#N/A"}]
[null,null,0.25,"15 Minutes",0.25,null,null,null,null,"2H40",2.6666666656000002,null,null,{"$error":"#N/A"}]
[null,null,0.33,"20 Minutes",0.33,null,null,null,null,"2H45",2.7499999988999999,null,null,{"$error":"#N/A"}]
[null,null,0.42,"25 Minutes",0.42,null,null,null,null,"2H50",2.8333333322000001,null,null,{"$error":"#N/A"}]
[null,null,0.5,"30 Minutes",0.5,null,null,null,null,"2H55",2.9166666655000002,null,null,{"$error":"#N/A"}]
[null,null,0.57999999999999996,"35 Minutes",0.57999999999999996,null,null,null,null,"3 Heures",2.9999999987999999,null,null,{"$error":"#N/A"}]
[null,null,0.67,"40 Minutes",0.67,null,null,null,null,"3H05",3.0833333321,null,null,{"$error":"#N/A"}]
[null,null,0.75,"45 Minutes",0.75,null,null,null,null,"3H10",3.1666666654000002,null,null,{"$error":"#N/A"}]
[null,null,0.83,"50 Minutes",0.83,null,null,null,null,"3H15",3.2499999986999999,null,null,{"$error":"#N/A"}]
[null,null,0.92,"55 Minutes",0.92,null,null,null,null,"3H20",3.333333332,null,null,{"$error":"#N/A"}]
[null,null,1,"1 Heure",1,null,null,null,null,"3H25",3.4166666653000002,null,null,{"$error":"#N/A"}]
[null,null,1.08,"1H05",1.08,null,null,null,null,"3H30",3.4999999985999999]
[null,null,1.17,"1H10",1.17,null,null,null,null,"3H35",3.5833333319]
[null,null,1.25,"1H15",1.25,null,null,null,null,"3H40",3.6666666652000002]
[null,null,1.33,"1H20",1.33,null,null,null,null,"3H45",3.7499999984999999]
[null,null,1.42,"1H25",1.42,null,null,null,null,"3H50",3.8333333318]
[null,null,1.5,"1H30",1.5,null,null,null,null,"3H55",3.9166666651000002]
[null,null,1.58,"1H35",1.58,null,null,null,null,"4 Heures",3.9999999983999999]
[null,null,1.67,"1H40",1.67,null,null,null,null,"4H05",4.0833333316999996]
[null,null,1.75,"1H45",1.75,null,null,null,null,"4H10",4.1666666650000002]
[null,null,1.83,"1H50",1.83,null,null,null,null,"4H15",4.2499999982999999]
[null,null,1.92,"1H55",1.92,null,null,null,null,"4H20",4.3333333315999996]
[null,null,2,"2 Heures",2,null,null,null,null,"4H25",4.4166666649000001]
[null,null,2.08,"2H05",2.08,null,null,null,null,"4H30",4.4999999981999999]
[null,null,2.17,"2H10",2.17,null,null,null,null,"4H35",4.5833333315000004]
[null,null,2.25,"2H15",2.25,null,null,null,null,"4H40",4.6666666648000001]
[null,null,2.33,"2H20",2.33,null,null,null,null,"4H45",4.7499999980999998]
[null,null,2.42,"2H25",2.42,null,null,null,null,"4H50",4.8333333314000004]
[null,null,2.5,"2H30",2.5,null,null,null,null,"4H55",4.9166666647000001]
[null,null,2.58,"2H35",2.58,null,null,null,null,"5 Heures",4.9999999979999998]
[null,null,2.67,"2H40",2.67,null,null,null,null,"5H05",5.0833333313000004]
[null,null,2.75,"2H45",2.75,null,null,null,null,"5H10",5.1666666646000001]
[null,null,2.83,"2H50",2.83,null,null,null,null,"5H15",5.2499999978999998]
[null,null,2.92,"2H55",2.92,null,null,null,null,"5H20",5.3333333312000004]
[null,null,3,"3 Heures",3,null,null,null,null,"5H25",5.4166666645000001]
[null,null,3.08,"3H05",3.08,null,null,null,null,"5H30",5.4999999977999998]
[null,null,3.17,"3H10",3.17,null,null,null,null,"5H35",5.5833333311000004]
[null,null,3.25,"3H15",3.25,null,null,null,null,"5H40",5.6666666644000001]
[null,null,3.33,"3H20",3.33,null,null,null,null,"5H45",5.7499999976999998]
[null,null,3.42,"3H25",3.42,null,null,null,null,"5H50",5.8333333310000004]
[null,null,3.5,"3H30",3.5,null,null,null,null,"5H55",5.9166666643000001]
[null,null,3.58,"3H35",3.58,null,null,null,null,"6 Heures",5.9999999975999998]
[null,null,3.67,"3H40",3.67,null,null,null,null,"6H05",6.0833333309000004]
[null,null,3.75,"3H45",3.75,null,null,null,null,"6H10",6.1666666642000001]
[null,null,3.83,"3H50",3.83,null,null,null,null,"6H15",6.2499999974999998]
[null,null,3.92,"3H55",3.92,null,null,null,null,"6H20",6.3333333308000004]
[null,null,4,"4 Heures",4,null,null,null,null,"6H25",6.4166666641000001]
[null,null,4.08,"4H05",4.08,null,null,null,null,"6H30",6.4999999973999998]
[null,null,4.17,"4H10",4.17,null,null,null,null,"6H35",6.5833333307000004]
[null,null,4.25,"4H15",4.25,null,null,null,null,"6H40",6.6666666640000001]
[null,null,4.33,"4H20",4.33,null,null,null,null,"6H45",6.7499999972999998]
[null,null,4.42,"4H25",4.42,null,null,null,null,"6H50",6.8333333306000004]
[null,null,4.5,"4H30",4.5,null,null,null,null,"6H55",6.9166666639000001]
[null,null,4.58,"4H35",4.58,null,null,null,null,"7 Heures",6.9999999971999998]
[null,null,4.67,"4H40",4.67,null,null,null,null,"7H05",7.0833333305000004]
[null,null,4.75,"4H45",4.75,null,null,null,null,"7H10",7.1666666638000001]
[null,null,4.83,"4H50",4.83,null,null,null,null,"7H15",7.2499999970999998]
[null,null,4.92,"4H55",4.92,null,null,null,null,"7H20",7.3333333304000003]
[null,null,5,"5 Heures",5,null,null,null,null,"7H25",7.4166666637000001]
[null,null,5.08,"5H05",5.08,null,null,null,null,"7H30",7.4999999969999998]
[null,null,5.17,"5H10",5.17,null,null,null,null,"7H35",7.5833333303000003]
[null,null,5.25,"5H15",5.25,null,null,null,null,"7H40",7.6666666636]
[null,null,5.33,"5H20",5.33,null,null,null,null,"7H45",7.7499999968999997]
[null,null,5.42,"5H25",{"$f":"ROUND(C113,2)","v":5.42},null,null,null,null,"7H50",7.8333333302000003]
[null,null,5.5,"5H30",5.5,null,null,null,null,"7H55",7.9166666635]
[null,null,5.58,"5H35",5.58,null,null,null,null,"8 Heures",7.9999999967999997]
[null,null,5.67,"5H40",5.67,null,null,null,null,"8H05",8.0833333301000003]
[null,null,5.75,"5H45",5.75,null,null,null,null,"8H10",8.1666666633999991]
[null,null,5.83,"5H50",5.83,null,null,null,null,"8H15",8.2499999966999997]
[null,null,5.92,"5H55",5.92,null,null,null,null,"8H20",8.3333333300000003]
[null,null,6,"6 Heures",6,null,null,null,null,"8H25",8.4166666632999991]
[null,null,6.08,"6H05",6.08,null,null,null,null,"8H30",8.4999999965999997]
[null,null,6.17,"6H10",6.17,null,null,null,null,"8H35",8.5833333299000003]
[null,null,6.25,"6H15",6.25,null,null,null,null,"8H40",8.6666666631999991]
[null,null,6.33,"6H20",6.33,null,null,null,null,"8H45",8.7499999964999997]
[null,null,6.42,"6H25",6.42,null,null,null,null,"8H50",8.8333333298000003]
[null,null,6.5,"6H30",6.5,null,null,null,null,"8H55",8.9166666630999991]
[null,null,6.58,"6H35",6.58,null,null,null,null,"9 Heures",8.9999999963999997]
[null,null,6.67,"6H40",6.67]
[null,null,6.75,"6H45",6.75]
[null,null,6.83,"6H50",6.83]
[null,null,6.92,"6H55",6.92]
[null,null,7,"7 Heures",7]
[null,null,7.08,"7H05",7.08]
[null,null,7.17,"7H10",7.17]
[null,null,7.25,"7H15",7.25]
[null,null,7.33,"7H20",7.33]
[null,null,7.42,"7H25",7.42]
[null,null,7.5,"7H30",7.5]
[null,null,7.58,"7H35",7.58]
[null,null,7.67,"7H40",7.67]
[null,null,7.75,"7H45",7.75]
[null,null,7.83,"7H50",7.83]
[null,null,7.92,"7H55",7.92]
[null,null,8,"8 Heures",8]
[null,null,8.08,"8H05",8.08]
[null,null,8.17,"8H10",8.17]
[null,null,8.25,"8H15",8.25]
[null,null,8.33,"8H20",8.33]
[null,null,8.42,"8H25",8.42]
[null,null,8.5,"8H30",8.5]
[null,null,8.58,"8H35",8.58]
[null,null,8.67,"8H40",8.67]
[null,null,8.75,"8H45",8.75]
[null,null,8.83,"8H50",8.83]
[null,null,8.92,"8H55",8.92]
[null,null,9,"9 Heures",9]